Workbook

Sheet Menu
C2: Motor Decisions MatterSM Simple Savings Chart Select Motor Speed and Enclosure Type TEFC, ODP · 1200, 1800, 3600 RPM · Full-load Operation · Nominal Efficiency
E8: TEFC
E11: ODP
C14: Instructions:
C15: 1. Click one of the six buttons to select motor enclosure type (ODP or TEFC) and speed (1200, 1800, or 3600 RPM).
C16: 2. Insert your motor’s annual hours of operation and cost of electricity per kWh in the blue cells to generate the calculation.

Sheet TEFC 1200 Savings
D1: Estimated Annual Energy Savings from Upgrading Motor Efficiency TEFC · 1200 RPM · Full-load Operation · Nominal Efficiency Estimated Annual Energy Cost = (horsepower x annual operating hours x cost of electricity x 0.746) / (efficiency)
N4: Learn more about saving money through sound motor management. For additional tools and resources, visit: www.motorsmatter.org.
D6: Enter Appropriate Values for: | H6: Annual Operating Hours : | K6: 8000 | M6: hrs per year
H7: Cost of Electricity : | K7: 10 | M7: ¢ per kWh
A9: Motor Size (hp) | C9: Operating Costs | E9: Energy Savings | H9: Operating Costs | J9: Energy Savings | M9: Operating Costs | O9: Energy Savings
C10: Pre-EPAct | D10: EPAct | E10: Δ Pre-EPAct => EPAct | H10: EPAct | I10: EISA | J10: Δ EPAct => EISA | M10: Pre-EPAct | N10: EISA | O10: Δ Pre-EPAct => EISA
A11: 1 | C11: =($A11*0.746*$K$6*$K$7)/('TEFC 1200 Values'!E7) -> 813.5223555 | D11: =($A11*0.746*$K$6*$K$7)/('TEFC 1200 Values'!F7) -> 746 | E11: =C11-D11 -> 67.52235551 | H11: =($A11*0.746*$K$6*$K$7)/('TEFC 1200 Values'!F7) -> 746 | I11: =($A11*0.746*$K$6*$K$7)/('TEFC 1200 Values'!G7) -> 723.3939394 | J11: =H11-I11 -> 22.60606061 | M11: =($A11*0.746*$K$6*$K$7)/('TEFC 1200 Values'!E7) -> 813.5223555 | N11: =($A11*0.746*$K$6*$K$7)/('TEFC 1200 Values'!G7) -> 723.3939394 | O11: =M11-N11 -> 90.12841611
A12: 1.5 | C12: =($A12*0.746*$K$6*$K$7)/('TEFC 1200 Values'!E8) -> 1149.165597 | D12: =($A12*0.746*$K$6*$K$7)/('TEFC 1200 Values'!F8) -> 1047.017544 | E12: =C12-D12 -> 102.1480531 | H12: =($A12*0.746*$K$6*$K$7)/('TEFC 1200 Values'!F8) -> 1047.017544 | I12: =($A12*0.746*$K$6*$K$7)/('TEFC 1200 Values'!G8) -> 1023.085714 | J12: 23.93182957 | M12: =($A12*0.746*$K$6*$K$7)/('TEFC 1200 Values'!E8) -> 1149.165597 | N12: =($A12*0.746*$K$6*$K$7)/('TEFC 1200 Values'!G8) -> 1023.085714 | O12: =M12-N12 -> 126.0798826
A13: 2 | C13: =($A13*0.746*$K$6*$K$7)/('TEFC 1200 Values'!E9) -> 1523.615011 | D13: =($A13*0.746*$K$6*$K$7)/('TEFC 1200 Values'!F9) -> 1379.884393 | E13: 143.7306184 | H13: =($A13*0.746*$K$6*$K$7)/('TEFC 1200 Values'!F9) -> 1379.884393 | I13: =($A13*0.746*$K$6*$K$7)/('TEFC 1200 Values'!G9) -> 1348.700565 | J13: 31.18382809 | M13: =($A13*0.746*$K$6*$K$7)/('TEFC 1200 Values'!E9) -> 1523.615011 | N13: =($A13*0.746*$K$6*$K$7)/('TEFC 1200 Values'!G9) -> 1348.700565 | O13: =M13-N13 -> 174.9144465
A14: 3 | C14: =($A14*0.746*$K$6*$K$7)/('TEFC 1200 Values'!E10) -> 2227.974116 | D14: =($A14*0.746*$K$6*$K$7)/('TEFC 1200 Values'!F10) -> 2046.171429 | E14: 181.8026879 | H14: =($A14*0.746*$K$6*$K$7)/('TEFC 1200 Values'!F10) -> 2046.171429 | I14: =($A14*0.746*$K$6*$K$7)/('TEFC 1200 Values'!G10) -> 2000.446927 | J14: 45.7245012 | M14: =($A14*0.746*$K$6*$K$7)/('TEFC 1200 Values'!E10) -> 2227.974116 | N14: =($A14*0.746*$K$6*$K$7)/('TEFC 1200 Values'!G10) -> 2000.446927 | O14: =M14-N14 -> 227.5271891
A15: 5 | C15: =($A15*0.746*$K$6*$K$7)/('TEFC 1200 Values'!E11) -> 3589.126774 | D15: =($A15*0.746*$K$6*$K$7)/('TEFC 1200 Values'!F11) -> 3410.285714 | E15: 178.8410598 | H15: =($A15*0.746*$K$6*$K$7)/('TEFC 1200 Values'!F11) -> 3410.285714 | I15: =($A15*0.746*$K$6*$K$7)/('TEFC 1200 Values'!G11) -> 3334.078212 | J15: 76.207502 | M15: =($A15*0.746*$K$6*$K$7)/('TEFC 1200 Values'!E11) -> 3589.126774 | N15: =($A15*0.746*$K$6*$K$7)/('TEFC 1200 Values'!G11) -> 3334.078212 | O15: 255.0485618
A16: 7.5 | C16: =($A16*0.746*$K$6*$K$7)/('TEFC 1200 Values'!E12) -> 5300.805306 | D16: =($A16*0.746*$K$6*$K$7)/('TEFC 1200 Values'!F12) -> 5001.117318 | E16: 299.6879871 | H16: =($A16*0.746*$K$6*$K$7)/('TEFC 1200 Values'!F12) -> 5001.117318 | I16: =($A16*0.746*$K$6*$K$7)/('TEFC 1200 Values'!G12) -> 4918.681319 | J16: 82.43599975 | M16: =($A16*0.746*$K$6*$K$7)/('TEFC 1200 Values'!E12) -> 5300.805306 | N16: =($A16*0.746*$K$6*$K$7)/('TEFC 1200 Values'!G12) -> 4918.681319 | O16: 382.1239869
A17: 10 | C17: =($A17*0.746*$K$6*$K$7)/('TEFC 1200 Values'!E13) -> 7025.309005 | D17: =($A17*0.746*$K$6*$K$7)/('TEFC 1200 Values'!F13) -> 6668.156425 | E17: 357.1525807 | H17: =($A17*0.746*$K$6*$K$7)/('TEFC 1200 Values'!F13) -> 6668.156425 | I17: =($A17*0.746*$K$6*$K$7)/('TEFC 1200 Values'!G13) -> 6558.241758 | J17: 109.9146663 | M17: =($A17*0.746*$K$6*$K$7)/('TEFC 1200 Values'!E13) -> 7025.309005 | N17: =($A17*0.746*$K$6*$K$7)/('TEFC 1200 Values'!G13) -> 6558.241758 | O17: 467.0672471
A18: 15 | C18: =($A18*0.746*$K$6*$K$7)/('TEFC 1200 Values'!E14) -> 10287.29028 | D18: =($A18*0.746*$K$6*$K$7)/('TEFC 1200 Values'!F14) -> 9924.611973 | E18: 362.6783047 | H18: =($A18*0.746*$K$6*$K$7)/('TEFC 1200 Values'!F14) -> 9924.611973 | I18: =($A18*0.746*$K$6*$K$7)/('TEFC 1200 Values'!G14) -> 9762.268266 | J18: 162.3437073 | M18: =($A18*0.746*$K$6*$K$7)/('TEFC 1200 Values'!E14) -> 10287.29028 | N18: =($A18*0.746*$K$6*$K$7)/('TEFC 1200 Values'!G14) -> 9762.268266 | O18: 525.022012
A19: 20 | C19: =($A19*0.746*$K$6*$K$7)/('TEFC 1200 Values'!E15) -> 13603.8295 | D19: =($A19*0.746*$K$6*$K$7)/('TEFC 1200 Values'!F15) -> 13232.81596 | E19: 371.0135317 | H19: =($A19*0.746*$K$6*$K$7)/('TEFC 1200 Values'!F15) -> 13232.81596 | I19: =($A19*0.746*$K$6*$K$7)/('TEFC 1200 Values'!G15) -> 13016.35769 | J19: 216.4582764 | M19: =($A19*0.746*$K$6*$K$7)/('TEFC 1200 Values'!E15) -> 13603.8295 | N19: =($A19*0.746*$K$6*$K$7)/('TEFC 1200 Values'!G15) -> 13016.35769 | O19: 587.4718081
A20: 25 | C20: =($A20*0.746*$K$6*$K$7)/('TEFC 1200 Values'!E16) -> 16777.24053 | D20: =($A20*0.746*$K$6*$K$7)/('TEFC 1200 Values'!F16) -> 16270.44711 | E20: 506.7934161 | H20: =($A20*0.746*$K$6*$K$7)/('TEFC 1200 Values'!F16) -> 16270.44711 | I20: =($A20*0.746*$K$6*$K$7)/('TEFC 1200 Values'!G16) -> 16043.01075 | J20: 227.4363575 | M20: =($A20*0.746*$K$6*$K$7)/('TEFC 1200 Values'!E16) -> 16777.24053 | N20: =($A20*0.746*$K$6*$K$7)/('TEFC 1200 Values'!G16) -> 16043.01075 | O20: 734.2297736
A21: 30 | C21: =($A21*0.746*$K$6*$K$7)/('TEFC 1200 Values'!E17) -> 19973.22624 | D21: =($A21*0.746*$K$6*$K$7)/('TEFC 1200 Values'!F17) -> 19524.53653 | E21: 448.6897061 | H21: =($A21*0.746*$K$6*$K$7)/('TEFC 1200 Values'!F17) -> 19524.53653 | I21: =($A21*0.746*$K$6*$K$7)/('TEFC 1200 Values'!G17) -> 19251.6129 | J21: 272.9236289 | M21: =($A21*0.746*$K$6*$K$7)/('TEFC 1200 Values'!E17) -> 19973.22624 | N21: =($A21*0.746*$K$6*$K$7)/('TEFC 1200 Values'!G17) -> 19251.6129 | O21: 721.6133351
A22: 40 | C22: =($A22*0.746*$K$6*$K$7)/('TEFC 1200 Values'!E18) -> 26548.0427 | D22: =($A22*0.746*$K$6*$K$7)/('TEFC 1200 Values'!F18) -> 25668.8172 | E22: 879.2255003 | H22: =($A22*0.746*$K$6*$K$7)/('TEFC 1200 Values'!F18) -> 25668.8172 | I22: =($A22*0.746*$K$6*$K$7)/('TEFC 1200 Values'!G18) -> 25368.75664 | J22: 300.0605624 | M22: =($A22*0.746*$K$6*$K$7)/('TEFC 1200 Values'!E18) -> 26548.0427 | N22: =($A22*0.746*$K$6*$K$7)/('TEFC 1200 Values'!G18) -> 25368.75664 | O22: 1179.286063
A23: 50 | C23: =($A23*0.746*$K$6*$K$7)/('TEFC 1200 Values'!E19) -> 32928.71331 | D23: =($A23*0.746*$K$6*$K$7)/('TEFC 1200 Values'!F19) -> 32086.02151 | E23: 842.6918029 | H23: =($A23*0.746*$K$6*$K$7)/('TEFC 1200 Values'!F19) -> 32086.02151 | I23: =($A23*0.746*$K$6*$K$7)/('TEFC 1200 Values'!G19) -> 31710.9458 | J23: 375.075703 | M23: =($A23*0.746*$K$6*$K$7)/('TEFC 1200 Values'!E19) -> 32928.71331 | N23: =($A23*0.746*$K$6*$K$7)/('TEFC 1200 Values'!G19) -> 31710.9458 | O23: 1217.767506
A24: 60 | C24: =($A24*0.746*$K$6*$K$7)/('TEFC 1200 Values'!E20) -> 39457.85124 | D24: =($A24*0.746*$K$6*$K$7)/('TEFC 1200 Values'!F20) -> 38256.41026 | E24: 1201.440983 | H24: =($A24*0.746*$K$6*$K$7)/('TEFC 1200 Values'!F20) -> 38256.41026 | I24: =($A24*0.746*$K$6*$K$7)/('TEFC 1200 Values'!G20) -> 37892.06349 | J24: 364.3467643 | M24: =($A24*0.746*$K$6*$K$7)/('TEFC 1200 Values'!E20) -> 39457.85124 | N24: =($A24*0.746*$K$6*$K$7)/('TEFC 1200 Values'!G20) -> 37892.06349 | O24: 1565.787748
A25: 75 | C25: =($A25*0.746*$K$6*$K$7)/('TEFC 1200 Values'!E21) -> 48859.29484 | D25: =($A25*0.746*$K$6*$K$7)/('TEFC 1200 Values'!F21) -> 47820.51282 | E25: 1038.782016 | H25: =($A25*0.746*$K$6*$K$7)/('TEFC 1200 Values'!F21) -> 47820.51282 | I25: =($A25*0.746*$K$6*$K$7)/('TEFC 1200 Values'!G21) -> 47365.07937 | J25: 455.4334554 | M25: =($A25*0.746*$K$6*$K$7)/('TEFC 1200 Values'!E21) -> 48859.29484 | N25: =($A25*0.746*$K$6*$K$7)/('TEFC 1200 Values'!G21) -> 47365.07937 | O25: 1494.215472
A26: 100 | C26: =($A26*0.746*$K$6*$K$7)/('TEFC 1200 Values'!E22) -> 65295.40481 | D26: =($A26*0.746*$K$6*$K$7)/('TEFC 1200 Values'!F22) -> 63421.8916 | E26: 1873.513209 | H26: =($A26*0.746*$K$6*$K$7)/('TEFC 1200 Values'!F22) -> 63421.8916 | I26: =($A26*0.746*$K$6*$K$7)/('TEFC 1200 Values'!G22) -> 62821.05263 | J26: 600.8389731 | M26: =($A26*0.746*$K$6*$K$7)/('TEFC 1200 Values'!E22) -> 65295.40481 | N26: =($A26*0.746*$K$6*$K$7)/('TEFC 1200 Values'!G22) -> 62821.05263 | O26: 2474.352182
A27: 125 | C27: =($A27*0.746*$K$6*$K$7)/('TEFC 1200 Values'!E23) -> 81034.10819 | D27: =($A27*0.746*$K$6*$K$7)/('TEFC 1200 Values'!F23) -> 79277.36451 | E27: 1756.743684 | H27: =($A27*0.746*$K$6*$K$7)/('TEFC 1200 Values'!F23) -> 79277.36451 | I27: =($A27*0.746*$K$6*$K$7)/('TEFC 1200 Values'!G23) -> 78526.31579 | J27: 751.0487164 | M27: =($A27*0.746*$K$6*$K$7)/('TEFC 1200 Values'!E23) -> 81034.10819 | N27: =($A27*0.746*$K$6*$K$7)/('TEFC 1200 Values'!G23) -> 78526.31579 | O27: 2507.792401
A28: 150 | C28: =($A28*0.746*$K$6*$K$7)/('TEFC 1200 Values'!E24) -> 96175.33305 | D28: =($A28*0.746*$K$6*$K$7)/('TEFC 1200 Values'!F24) -> 94231.57895 | E28: 1943.754099 | H28: =($A28*0.746*$K$6*$K$7)/('TEFC 1200 Values'!F24) -> 94231.57895 | I28: =($A28*0.746*$K$6*$K$7)/('TEFC 1200 Values'!G24) -> 93444.67641 | J28: 786.9025382 | M28: =($A28*0.746*$K$6*$K$7)/('TEFC 1200 Values'!E24) -> 96175.33305 | N28: =($A28*0.746*$K$6*$K$7)/('TEFC 1200 Values'!G24) -> 93444.67641 | O28: 2730.656638
A29: 200 | C29: =($A29*0.746*$K$6*$K$7)/('TEFC 1200 Values'!E25) -> 128954.1919 | D29: =($A29*0.746*$K$6*$K$7)/('TEFC 1200 Values'!F25) -> 125642.1053 | E29: 3312.086612 | H29: =($A29*0.746*$K$6*$K$7)/('TEFC 1200 Values'!F25) -> 125642.1053 | I29: =($A29*0.746*$K$6*$K$7)/('TEFC 1200 Values'!G25) -> 124592.9019 | J29: 1049.203384 | M29: =($A29*0.746*$K$6*$K$7)/('TEFC 1200 Values'!E25) -> 128954.1919 | N29: =($A29*0.746*$K$6*$K$7)/('TEFC 1200 Values'!G25) -> 124592.9019 | O29: 4361.289997
A31: (hp) | C31: Pre-EPAct | D31: EISA | E31: Δ Pre-EPAct => EISA | H31: EISA | I31: Above EISA | J31: Δ EISA => Above EISA | M31: Pre-EPAct | N31: Above EISA | O31: Δ Pre-EPAct => Above EISA
A32: 250 | C32: =($A32*0.746*$K$6*$K$7)/('TEFC 1200 Values'!E29) -> 158050.8475 | D32: =($A32*0.746*$K$6*$K$7)/('TEFC 1200 Values'!F29) -> 157052.6316 | E32: =C32-D32 -> 998.2158787 | H32: =($A32*0.746*$K$6*$K$7)/('TEFC 1200 Values'!F29) -> 157052.6316 | I32: =($A32*0.746*$K$6*$K$7)/('TEFC 1200 Values'!G29) -> 155741.1273 | J32: =H32-I32 -> 1311.50423 | M32: =($A32*0.746*$K$6*$K$7)/('TEFC 1200 Values'!E29) -> 158050.8475 | N32: =($A32*0.746*$K$6*$K$7)/('TEFC 1200 Values'!G29) -> 155741.1273 | O32: =M32-N32 -> 2309.720109
A33: 300 | C33: =($A33*0.746*$K$6*$K$7)/('TEFC 1200 Values'!E30) -> 189661.0169 | D33: =($A33*0.746*$K$6*$K$7)/('TEFC 1200 Values'!F30) -> 188463.1579 | E33: =C33-D33 -> 1197.859054 | H33: =($A33*0.746*$K$6*$K$7)/('TEFC 1200 Values'!F30) -> 188463.1579 | I33: =($A33*0.746*$K$6*$K$7)/('TEFC 1200 Values'!G30) -> 186889.3528 | J33: =H33-I33 -> 1573.805076 | M33: =($A33*0.746*$K$6*$K$7)/('TEFC 1200 Values'!E30) -> 189661.0169 | N33: =($A33*0.746*$K$6*$K$7)/('TEFC 1200 Values'!G30) -> 186889.3528 | O33: 2771.664131
A34: 350 | C34: =($A34*0.746*$K$6*$K$7)/('TEFC 1200 Values'!E31) -> 221552.8214 | D34: =($A34*0.746*$K$6*$K$7)/('TEFC 1200 Values'!F31) -> 219873.6842 | E34: =C34-D34 -> 1679.137173 | H34: =($A34*0.746*$K$6*$K$7)/('TEFC 1200 Values'!F31) -> 219873.6842 | I34: =($A34*0.746*$K$6*$K$7)/('TEFC 1200 Values'!G31) -> 218037.5783 | J34: =H34-I34 -> 1836.105922 | M34: =($A34*0.746*$K$6*$K$7)/('TEFC 1200 Values'!E31) -> 221552.8214 | N34: =($A34*0.746*$K$6*$K$7)/('TEFC 1200 Values'!G31) -> 218037.5783 | O34: 3515.243095
A35: 400 | C35: =($A35*0.746*$K$6*$K$7)/('TEFC 1200 Values'!E32) -> 251284.2105 | D35: =($A35*0.746*$K$6*$K$7)/('TEFC 1200 Values'!F32) -> 251284.2105 | E35: =C35-D35 -> 0 | H35: =($A35*0.746*$K$6*$K$7)/('TEFC 1200 Values'!F32) -> 251284.2105 | I35: =($A35*0.746*$K$6*$K$7)/('TEFC 1200 Values'!G32) -> 249185.8038 | J35: =H35-I35 -> 2098.406768 | M35: =($A35*0.746*$K$6*$K$7)/('TEFC 1200 Values'!E32) -> 251284.2105 | N35: =($A35*0.746*$K$6*$K$7)/('TEFC 1200 Values'!G32) -> 249185.8038 | O35: 2098.406768
A36: 450 | C36: =($A36*0.746*$K$6*$K$7)/('TEFC 1200 Values'!E33) -> 282694.7368 | D36: x | E36: x | H36: x | I36: =($A36*0.746*$K$6*$K$7)/('TEFC 1200 Values'!G33) -> 280334.0292 | J36: x | M36: =($A36*0.746*$K$6*$K$7)/('TEFC 1200 Values'!E33) -> 282694.7368 | N36: =($A36*0.746*$K$6*$K$7)/('TEFC 1200 Values'!G33) -> 280334.0292 | O36: 2360.707615
A37: 500 | C37: =($A37*0.746*$K$6*$K$7)/('TEFC 1200 Values'!E34) -> 314105.2632 | D37: x | E37: x | H37: x | I37: =($A37*0.746*$K$6*$K$7)/('TEFC 1200 Values'!G34) -> 311482.2547 | J37: x | M37: =($A37*0.746*$K$6*$K$7)/('TEFC 1200 Values'!E34) -> 314105.2632 | N37: =($A37*0.746*$K$6*$K$7)/('TEFC 1200 Values'!G34) -> 311482.2547 | O37: 2623.008461
A39: Please see the following "Values" sheet for efficiency data and descriptions.
A40: x: efficiency value not established at this speed and enclosure type.

Sheet TEFC 1200 Values
A1: Efficiency Values Used to Estimate Annual Energy Savings TEFC · 1200 RPM · Full-load Operation · Nominal Efficiency Estimated Annual Energy Cost = (horsepower x annual operating hours x cost of electricity x 0.746) / (efficiency)
D5: Size (hp) | E5: Pre-EPAct | F5: EPAct | G5: EISA | I5: Pre-Energy Policy Act (Pre-EPAct) refers to efficiency levels lower than the federal nominal efficiency standards established by EPAct. Pre-EPAct efficiency levels are an estimated average of nominal efficiency for motors manufactured before the EPAct standards. Pre-EPAct efficiency is calculated by the Department of Energy and used in the MotorMaster+ tool (v 4.01.01, September 2010). | O5: For more information, see: http://www1.eere.energy.gov/industry/bestpractices/software_motormaster.html
D7: 1 | E7: 73.36 | F7: 80 | G7: 82.5
D8: 1.5 | E8: 77.9 | F8: 85.5 | G8: 87.5
D9: 2 | E9: 78.34 | F9: 86.5 | G9: 88.5
D10: 3 | E10: 80.36 | F10: 87.5 | G10: 89.5
D11: 5 | E11: 83.14 | F11: 87.5 | G11: 89.5 | I11: Energy Policy Act (EPAct) refers to the federal nominal efficiency levels established by the 1992 Energy Policy Act, which became effective in 1997. EPAct established federal nominal efficiency standards for 1-200 hp general purpose motors 1200rpm, 1800 rpm, and 3600 rpm. EPAct efficiency is equivalent to NEMA MG1-2007 Table 12-11 for 1-200 hp motors. EPAct did not establish efficiency standards for 201-500 hp motors. | O11: For more information, see: http://www1.eere.energy.gov/industry/bestpractices/pdfs/e-pact92.pdf
D12: 7.5 | E12: 84.44 | F12: 89.5 | G12: 91
D13: 10 | E13: 84.95 | F13: 89.5 | G13: 91
D14: 15 | E14: 87.02 | F14: 90.2 | G14: 91.7
D15: 20 | E15: 87.74 | F15: 90.2 | G15: 91.7
D16: 25 | E16: 88.93 | F16: 91.7 | G16: 93
D17: 30 | E17: 89.64 | F17: 91.7 | G17: 93 | I17: Energy Independence and Security Act (EISA) refers to the federal nominal efficiency standards established by the 2007 Energy Independence and Security Act, which became effective December 2010. For 1-200 hp general purpose motors 1200 rpm, 1800 rpm, 3600 rpm, EISA is equivalent to NEMA Premium®.* For 201-500 hp motors EISA established different federal nominal efficiency standards, which are equivalent to NEMA MG1-2007 Table 12-11. For 201-500 hp NEMA Premium nominal efficiency levels meet or exceed NEMA MG1-2007, Table 12-12. | O17: For more information, see: http://www1.eere.energy.gov/buildings/appliance_standards/commercial/electric_motors.html
D18: 40 | E18: 89.92 | F18: 93 | G18: 94.1
D19: 50 | E19: 90.62 | F19: 93 | G19: 94.1
D20: 60 | E20: 90.75 | F20: 93.6 | G20: 94.5
D21: 75 | E21: 91.61 | F21: 93.6 | G21: 94.5
D22: 100 | E22: 91.4 | F22: 94.1 | G22: 95
D23: 125 | E23: 92.06 | F23: 94.1 | G23: 95
D24: 150 | E24: 93.08 | F24: 95 | G24: 95.8
D25: 200 | E25: 92.56 | F25: 95 | G25: 95.8
I26: Above EISA refers to efficiency levels that exceed the EISA federal standards. For 201-500 hp general purpose motors 1200 rpm, 1800 rpm, 3600 rpm, Above EISA is equivalent to NEMA Premium,* with nominal efficiency levels that meet or exceed NEMA MG1-2007, Table 12-12. | O26: For more information, see: http://www.nema.org/stds/mg1.cfm
D27: Size (hp) | E27: Pre-EPAct | F27: EISA | G27: Above EISA
D29: 250 | E29: 94.4 | F29: 95 | G29: 95.8
D30: 300 | E30: 94.4 | F30: 95 | G30: 95.8
D31: 350 | E31: 94.28 | F31: 95 | G31: 95.8
D32: 400 | E32: 95 | F32: 95 | G32: 95.8
D33: 450 | E33: 95 | F33: x | G33: 95.8 | I33: *NEMA Premium is a trademark owned by the National Electrical Manufacturers Association, | P33: www.nema.org
D34: 500 | E34: 95 | F34: x | G34: 95.8 | I34: x: efficiency value not established at this speed and enclosure type.

Sheet ODP 1200 Savings
D1: Estimated Annual Energy Savings from Upgrading Motor Efficiency ODP · 1200 RPM · Full-load Operation · Nominal Efficiency Estimated Annual Energy Cost = (horsepower x annual operating hours x cost of electricity x 0.746) / (efficiency)
N4: Learn more about saving money through sound motor management. For additional tools and resources, visit: www.motorsmatter.org.
D6: Enter Appropriate Values for: | H6: Annual Operating Hours : | K6: 8000 | M6: hrs per year
H7: Cost of Electricity : | K7: 10 | M7: ¢ per kWh
A9: Motor Size (hp) | C9: Operating Costs | E9: Energy Savings | H9: Operating Costs | J9: Energy Savings | M9: Operating Costs | O9: Energy Savings
C10: Pre-EPAct | D10: EPAct | E10: Δ Pre-EPAct => EPAct | H10: EPAct | I10: EISA | J10: Δ EPAct => EISA | M10: Pre-EPAct | N10: EISA | O10: Δ Pre-EPAct => EISA
A11: 1 | C11: =($A11*0.746*$K$6*$K$7)/('ODP 1200 Values'!E7) -> 800.8588298 | D11: =($A11*0.746*$K$6*$K$7)/('ODP 1200 Values'!F7) -> 746 | E11: =C11-D11 -> 54.85882984 | H11: =($A11*0.746*$K$6*$K$7)/('ODP 1200 Values'!F7) -> 746 | I11: =($A11*0.746*$K$6*$K$7)/('ODP 1200 Values'!G7) -> 698.0116959 | J11: =H11-I11 -> 47.98830409 | M11: =($A11*0.746*$K$6*$K$7)/('ODP 1200 Values'!E7) -> 800.8588298 | N11: =($A11*0.746*$K$6*$K$7)/('ODP 1200 Values'!G7) -> 698.0116959 | O11: =M11-N11 -> 102.8471339
A12: 1.5 | C12: =($A12*0.746*$K$6*$K$7)/('ODP 1200 Values'!E8) -> 1153.01391 | D12: =($A12*0.746*$K$6*$K$7)/('ODP 1200 Values'!F8) -> 1065.714286 | E12: =C12-D12 -> 87.29962464 | H12: =($A12*0.746*$K$6*$K$7)/('ODP 1200 Values'!F8) -> 1065.714286 | I12: =($A12*0.746*$K$6*$K$7)/('ODP 1200 Values'!G8) -> 1034.913295 | J12: 30.80099092 | M12: =($A12*0.746*$K$6*$K$7)/('ODP 1200 Values'!E8) -> 1153.01391 | N12: =($A12*0.746*$K$6*$K$7)/('ODP 1200 Values'!G8) -> 1034.913295 | O12: =M12-N12 -> 118.1006156
A13: 2 | C13: =($A13*0.746*$K$6*$K$7)/('ODP 1200 Values'!E9) -> 1494.615577 | D13: =($A13*0.746*$K$6*$K$7)/('ODP 1200 Values'!F9) -> 1396.023392 | E13: 98.59218545 | H13: =($A13*0.746*$K$6*$K$7)/('ODP 1200 Values'!F9) -> 1396.023392 | I13: =($A13*0.746*$K$6*$K$7)/('ODP 1200 Values'!G9) -> 1364.114286 | J13: 31.9091061 | M13: =($A13*0.746*$K$6*$K$7)/('ODP 1200 Values'!E9) -> 1494.615577 | N13: =($A13*0.746*$K$6*$K$7)/('ODP 1200 Values'!G9) -> 1364.114286 | O13: =M13-N13 -> 130.5012915
A14: 3 | C14: =($A14*0.746*$K$6*$K$7)/('ODP 1200 Values'!E10) -> 2192.505511 | D14: =($A14*0.746*$K$6*$K$7)/('ODP 1200 Values'!F10) -> 2069.82659 | E14: 122.6789211 | H14: =($A14*0.746*$K$6*$K$7)/('ODP 1200 Values'!F10) -> 2069.82659 | I14: =($A14*0.746*$K$6*$K$7)/('ODP 1200 Values'!G10) -> 2023.050847 | J14: 46.77574214 | M14: =($A14*0.746*$K$6*$K$7)/('ODP 1200 Values'!E10) -> 2192.505511 | N14: =($A14*0.746*$K$6*$K$7)/('ODP 1200 Values'!G10) -> 2023.050847 | O14: =M14-N14 -> 169.4546632
A15: 5 | C15: =($A15*0.746*$K$6*$K$7)/('ODP 1200 Values'!E11) -> 3568.524276 | D15: =($A15*0.746*$K$6*$K$7)/('ODP 1200 Values'!F11) -> 3410.285714 | E15: 158.2385622 | H15: =($A15*0.746*$K$6*$K$7)/('ODP 1200 Values'!F11) -> 3410.285714 | I15: =($A15*0.746*$K$6*$K$7)/('ODP 1200 Values'!G11) -> 3334.078212 | J15: 76.207502 | M15: =($A15*0.746*$K$6*$K$7)/('ODP 1200 Values'!E11) -> 3568.524276 | N15: =($A15*0.746*$K$6*$K$7)/('ODP 1200 Values'!G11) -> 3334.078212 | O15: 234.4460642
A16: 7.5 | C16: =($A16*0.746*$K$6*$K$7)/('ODP 1200 Values'!E12) -> 5232.639701 | D16: =($A16*0.746*$K$6*$K$7)/('ODP 1200 Values'!F12) -> 5057.627119 | E16: 175.0125821 | H16: =($A16*0.746*$K$6*$K$7)/('ODP 1200 Values'!F12) -> 5057.627119 | I16: =($A16*0.746*$K$6*$K$7)/('ODP 1200 Values'!G12) -> 4962.305987 | J16: 95.32113195 | M16: =($A16*0.746*$K$6*$K$7)/('ODP 1200 Values'!E12) -> 5232.639701 | N16: =($A16*0.746*$K$6*$K$7)/('ODP 1200 Values'!G12) -> 4962.305987 | O16: 270.333714
A17: 10 | C17: =($A17*0.746*$K$6*$K$7)/('ODP 1200 Values'!E13) -> 6829.156654 | D17: =($A17*0.746*$K$6*$K$7)/('ODP 1200 Values'!F13) -> 6616.407982 | E17: 212.7486718 | H17: =($A17*0.746*$K$6*$K$7)/('ODP 1200 Values'!F13) -> 6616.407982 | I17: =($A17*0.746*$K$6*$K$7)/('ODP 1200 Values'!G13) -> 6508.178844 | J17: 108.2291382 | M17: =($A17*0.746*$K$6*$K$7)/('ODP 1200 Values'!E13) -> 6829.156654 | N17: =($A17*0.746*$K$6*$K$7)/('ODP 1200 Values'!G13) -> 6508.178844 | O17: 320.97781
A18: 15 | C18: =($A18*0.746*$K$6*$K$7)/('ODP 1200 Values'!E14) -> 10294.38822 | D18: =($A18*0.746*$K$6*$K$7)/('ODP 1200 Values'!F14) -> 9924.611973 | E18: 369.7762511 | H18: =($A18*0.746*$K$6*$K$7)/('ODP 1200 Values'!F14) -> 9924.611973 | I18: =($A18*0.746*$K$6*$K$7)/('ODP 1200 Values'!G14) -> 9762.268266 | J18: 162.3437073 | M18: =($A18*0.746*$K$6*$K$7)/('ODP 1200 Values'!E14) -> 10294.38822 | N18: =($A18*0.746*$K$6*$K$7)/('ODP 1200 Values'!G14) -> 9762.268266 | O18: 532.1199584
A19: 20 | C19: =($A19*0.746*$K$6*$K$7)/('ODP 1200 Values'!E15) -> 13610.03421 | D19: =($A19*0.746*$K$6*$K$7)/('ODP 1200 Values'!F15) -> 13116.48352 | E19: 493.550691 | H19: =($A19*0.746*$K$6*$K$7)/('ODP 1200 Values'!F15) -> 13116.48352 | I19: =($A19*0.746*$K$6*$K$7)/('ODP 1200 Values'!G15) -> 12917.74892 | J19: 198.7345987 | M19: =($A19*0.746*$K$6*$K$7)/('ODP 1200 Values'!E15) -> 13610.03421 | N19: =($A19*0.746*$K$6*$K$7)/('ODP 1200 Values'!G15) -> 12917.74892 | O19: 692.2852898
A20: 25 | C20: =($A20*0.746*$K$6*$K$7)/('ODP 1200 Values'!E16) -> 16771.58273 | D20: =($A20*0.746*$K$6*$K$7)/('ODP 1200 Values'!F16) -> 16270.44711 | E20: 501.1356237 | H20: =($A20*0.746*$K$6*$K$7)/('ODP 1200 Values'!F16) -> 16270.44711 | I20: =($A20*0.746*$K$6*$K$7)/('ODP 1200 Values'!G16) -> 16043.01075 | J20: 227.4363575 | M20: =($A20*0.746*$K$6*$K$7)/('ODP 1200 Values'!E16) -> 16771.58273 | N20: =($A20*0.746*$K$6*$K$7)/('ODP 1200 Values'!G16) -> 16043.01075 | O20: 728.5719811
A21: 30 | C21: =($A21*0.746*$K$6*$K$7)/('ODP 1200 Values'!E17) -> 20008.94055 | D21: =($A21*0.746*$K$6*$K$7)/('ODP 1200 Values'!F17) -> 19376.62338 | E21: 632.3171687 | H21: =($A21*0.746*$K$6*$K$7)/('ODP 1200 Values'!F17) -> 19376.62338 | I21: =($A21*0.746*$K$6*$K$7)/('ODP 1200 Values'!G17) -> 19128.20513 | J21: 248.4182484 | M21: =($A21*0.746*$K$6*$K$7)/('ODP 1200 Values'!E17) -> 20008.94055 | N21: =($A21*0.746*$K$6*$K$7)/('ODP 1200 Values'!G17) -> 19128.20513 | O21: 880.7354172
A22: 40 | C22: =($A22*0.746*$K$6*$K$7)/('ODP 1200 Values'!E18) -> 26693.5033 | D22: =($A22*0.746*$K$6*$K$7)/('ODP 1200 Values'!F18) -> 25668.8172 | E22: 1024.686094 | H22: =($A22*0.746*$K$6*$K$7)/('ODP 1200 Values'!F18) -> 25668.8172 | I22: =($A22*0.746*$K$6*$K$7)/('ODP 1200 Values'!G18) -> 25368.75664 | J22: 300.0605624 | M22: =($A22*0.746*$K$6*$K$7)/('ODP 1200 Values'!E18) -> 26693.5033 | N22: =($A22*0.746*$K$6*$K$7)/('ODP 1200 Values'!G18) -> 25368.75664 | O22: 1324.746657
A23: 50 | C23: =($A23*0.746*$K$6*$K$7)/('ODP 1200 Values'!E19) -> 33251.61578 | D23: =($A23*0.746*$K$6*$K$7)/('ODP 1200 Values'!F19) -> 32086.02151 | E23: 1165.594274 | H23: =($A23*0.746*$K$6*$K$7)/('ODP 1200 Values'!F19) -> 32086.02151 | I23: =($A23*0.746*$K$6*$K$7)/('ODP 1200 Values'!G19) -> 31710.9458 | J23: 375.075703 | M23: =($A23*0.746*$K$6*$K$7)/('ODP 1200 Values'!E19) -> 33251.61578 | N23: =($A23*0.746*$K$6*$K$7)/('ODP 1200 Values'!G19) -> 31710.9458 | O23: 1540.669977
A24: 60 | C24: =($A24*0.746*$K$6*$K$7)/('ODP 1200 Values'!E20) -> 39440.46701 | D24: =($A24*0.746*$K$6*$K$7)/('ODP 1200 Values'!F20) -> 38256.41026 | E24: 1184.056755 | H24: =($A24*0.746*$K$6*$K$7)/('ODP 1200 Values'!F20) -> 38256.41026 | I24: =($A24*0.746*$K$6*$K$7)/('ODP 1200 Values'!G20) -> 37892.06349 | J24: 364.3467643 | M24: =($A24*0.746*$K$6*$K$7)/('ODP 1200 Values'!E20) -> 39440.46701 | N24: =($A24*0.746*$K$6*$K$7)/('ODP 1200 Values'!G20) -> 37892.06349 | O24: 1548.40352
A25: 75 | C25: =($A25*0.746*$K$6*$K$7)/('ODP 1200 Values'!E21) -> 48912.68714 | D25: =($A25*0.746*$K$6*$K$7)/('ODP 1200 Values'!F21) -> 47820.51282 | E25: 1092.174318 | H25: =($A25*0.746*$K$6*$K$7)/('ODP 1200 Values'!F21) -> 47820.51282 | I25: =($A25*0.746*$K$6*$K$7)/('ODP 1200 Values'!G21) -> 47365.07937 | J25: 455.4334554 | M25: =($A25*0.746*$K$6*$K$7)/('ODP 1200 Values'!E21) -> 48912.68714 | N25: =($A25*0.746*$K$6*$K$7)/('ODP 1200 Values'!G21) -> 47365.07937 | O25: 1547.607773
A26: 100 | C26: =($A26*0.746*$K$6*$K$7)/('ODP 1200 Values'!E22) -> 64707.79573 | D26: =($A26*0.746*$K$6*$K$7)/('ODP 1200 Values'!F22) -> 63421.8916 | E26: 1285.904123 | H26: =($A26*0.746*$K$6*$K$7)/('ODP 1200 Values'!F22) -> 63421.8916 | I26: =($A26*0.746*$K$6*$K$7)/('ODP 1200 Values'!G22) -> 62821.05263 | J26: 600.8389731 | M26: =($A26*0.746*$K$6*$K$7)/('ODP 1200 Values'!E22) -> 64707.79573 | N26: =($A26*0.746*$K$6*$K$7)/('ODP 1200 Values'!G22) -> 62821.05263 | O26: 1886.743096
A27: 125 | C27: =($A27*0.746*$K$6*$K$7)/('ODP 1200 Values'!E23) -> 81113.40655 | D27: =($A27*0.746*$K$6*$K$7)/('ODP 1200 Values'!F23) -> 79277.36451 | E27: 1836.04204 | H27: =($A27*0.746*$K$6*$K$7)/('ODP 1200 Values'!F23) -> 79277.36451 | I27: =($A27*0.746*$K$6*$K$7)/('ODP 1200 Values'!G23) -> 78526.31579 | J27: 751.0487164 | M27: =($A27*0.746*$K$6*$K$7)/('ODP 1200 Values'!E23) -> 81113.40655 | N27: =($A27*0.746*$K$6*$K$7)/('ODP 1200 Values'!G23) -> 78526.31579 | O27: 2587.090756
A28: 150 | C28: =($A28*0.746*$K$6*$K$7)/('ODP 1200 Values'!E24) -> 96663.42728 | D28: =($A28*0.746*$K$6*$K$7)/('ODP 1200 Values'!F24) -> 94730.15873 | E28: 1933.268546 | H28: =($A28*0.746*$K$6*$K$7)/('ODP 1200 Values'!F24) -> 94730.15873 | I28: =($A28*0.746*$K$6*$K$7)/('ODP 1200 Values'!G24) -> 93836.47799 | J28: 893.6807427 | M28: =($A28*0.746*$K$6*$K$7)/('ODP 1200 Values'!E24) -> 96663.42728 | N28: =($A28*0.746*$K$6*$K$7)/('ODP 1200 Values'!G24) -> 93836.47799 | O28: 2826.949288
A29: 200 | C29: =($A29*0.746*$K$6*$K$7)/('ODP 1200 Values'!E25) -> 128523.7429 | D29: =($A29*0.746*$K$6*$K$7)/('ODP 1200 Values'!F25) -> 126306.8783 | E29: 2216.864559 | H29: =($A29*0.746*$K$6*$K$7)/('ODP 1200 Values'!F25) -> 126306.8783 | I29: =($A29*0.746*$K$6*$K$7)/('ODP 1200 Values'!G25) -> 125115.304 | J29: 1191.574324 | M29: =($A29*0.746*$K$6*$K$7)/('ODP 1200 Values'!E25) -> 128523.7429 | N29: =($A29*0.746*$K$6*$K$7)/('ODP 1200 Values'!G25) -> 125115.304 | O29: 3408.438883
A31: (hp) | C31: Pre-EPAct | D31: EISA | E31: Δ Pre-EPAct => EISA | H31: EISA | I31: Above EISA | J31: Δ EISA => Above EISA | M31: Pre-EPAct | N31: Above EISA | O31: Δ Pre-EPAct => Above EISA
A32: 250 | C32: =($A32*0.746*$K$6*$K$7)/('ODP 1200 Values'!E29) -> 158537.8812 | D32: =($A32*0.746*$K$6*$K$7)/('ODP 1200 Values'!F29) -> 156394.13 | E32: =C32-D32 -> 2143.751224 | H32: =($A32*0.746*$K$6*$K$7)/('ODP 1200 Values'!F29) -> 156394.13 | I32: =($A32*0.746*$K$6*$K$7)/('ODP 1200 Values'!G29) -> 156394.13 | J32: =H32-I32 -> 0 | M32: =($A32*0.746*$K$6*$K$7)/('ODP 1200 Values'!E29) -> 158537.8812 | N32: =($A32*0.746*$K$6*$K$7)/('ODP 1200 Values'!G29) -> 156394.13 | O32: =M32-N32 -> 2143.751224
A33: 300 | C33: =($A33*0.746*$K$6*$K$7)/('ODP 1200 Values'!E30) -> 189741.4159 | D33: =($A33*0.746*$K$6*$K$7)/('ODP 1200 Values'!F30) -> 187672.956 | E33: =C33-D33 -> 2068.459879 | H33: =($A33*0.746*$K$6*$K$7)/('ODP 1200 Values'!F30) -> 187672.956 | I33: =($A33*0.746*$K$6*$K$7)/('ODP 1200 Values'!G30) -> 187672.956 | J33: =H33-I33 -> 0 | M33: =($A33*0.746*$K$6*$K$7)/('ODP 1200 Values'!E30) -> 189741.4159 | N33: =($A33*0.746*$K$6*$K$7)/('ODP 1200 Values'!G30) -> 187672.956 | O33: 2068.459879
A34: 350 | C34: =($A34*0.746*$K$6*$K$7)/('ODP 1200 Values'!E31) -> 220966.8888 | D34: =($A34*0.746*$K$6*$K$7)/('ODP 1200 Values'!F31) -> 218951.782 | E34: =C34-D34 -> 2015.106848 | H34: =($A34*0.746*$K$6*$K$7)/('ODP 1200 Values'!F31) -> 218951.782 | I34: =($A34*0.746*$K$6*$K$7)/('ODP 1200 Values'!G31) -> 218951.782 | J34: =H34-I34 -> 0 | M34: =($A34*0.746*$K$6*$K$7)/('ODP 1200 Values'!E31) -> 220966.8888 | N34: =($A34*0.746*$K$6*$K$7)/('ODP 1200 Values'!G31) -> 218951.782 | O34: 2015.106848
A35: 400 | C35: =($A35*0.746*$K$6*$K$7)/('ODP 1200 Values'!E32) -> 250230.608 | D35: x | E35: x | H35: x | I35: =($A35*0.746*$K$6*$K$7)/('ODP 1200 Values'!G32) -> 249185.8038 | J35: x | M35: =($A35*0.746*$K$6*$K$7)/('ODP 1200 Values'!E32) -> 250230.608 | N35: =($A35*0.746*$K$6*$K$7)/('ODP 1200 Values'!G32) -> 249185.8038 | O35: 1044.804209
A36: 450 | C36: =($A36*0.746*$K$6*$K$7)/('ODP 1200 Values'!E33) -> 281509.434 | D36: x | E36: x | H36: x | I36: =($A36*0.746*$K$6*$K$7)/('ODP 1200 Values'!G33) -> 279168.3992 | J36: x | M36: =($A36*0.746*$K$6*$K$7)/('ODP 1200 Values'!E33) -> 281509.434 | N36: =($A36*0.746*$K$6*$K$7)/('ODP 1200 Values'!G33) -> 279168.3992 | O36: 2341.034794
A37: 500 | C37: =($A37*0.746*$K$6*$K$7)/('ODP 1200 Values'!E34) -> 312788.26 | D37: x | E37: x | H37: x | I37: =($A37*0.746*$K$6*$K$7)/('ODP 1200 Values'!G34) -> 310187.1102 | J37: x | M37: =($A37*0.746*$K$6*$K$7)/('ODP 1200 Values'!E34) -> 312788.26 | N37: =($A37*0.746*$K$6*$K$7)/('ODP 1200 Values'!G34) -> 310187.1102 | O37: 2601.149771
A39: Please see the following "Values" sheet for efficiency data and descriptions.
A40: x: efficiency value not established at this speed and enclosure type.

Sheet ODP 1200 Values
A1: Efficiency Values Used to Estimate Annual Energy Savings ODP · 1200 RPM · Full-load Operation · Nominal Efficiency Estimated Annual Energy Cost = (horsepower x annual operating hours x cost of electricity x 0.746) / (efficiency)
D5: Size (hp) | E5: Pre-EPAct | F5: EPAct | G5: EISA | I5: Pre-Energy Policy Act (Pre-EPAct) refers to efficiency levels lower than the federal nominal efficiency standards established by EPAct. Pre-EPAct efficiency levels are an estimated average of nominal efficiency for motors manufactured before the EPAct standards. Pre-EPAct efficiency is calculated by the Department of Energy and used in the MotorMaster+ tool (v 4.01.01, September 2010). | O5: For more information, see: http://www1.eere.energy.gov/industry/bestpractices/software_motormaster.html
D7: 1 | E7: 74.52 | F7: 80 | G7: 85.5
D8: 1.5 | E8: 77.64 | F8: 84 | G8: 86.5
D9: 2 | E9: 79.86 | F9: 85.5 | G9: 87.5
D10: 3 | E10: 81.66 | F10: 86.5 | G10: 88.5
D11: 5 | E11: 83.62 | F11: 87.5 | G11: 89.5 | I11: Energy Policy Act (EPAct) refers to the federal nominal efficiency levels established by the 1992 Energy Policy Act, which became effective in 1997. EPAct established federal nominal efficiency standards for 1-200 hp general purpose motors 1200rpm, 1800 rpm, and 3600 rpm. EPAct efficiency is equivalent to NEMA MG1-2007 Table 12-11 for 1-200 hp motors. EPAct did not establish efficiency standards for 201-500 hp motors. | O11: For more information, see: http://www1.eere.energy.gov/industry/bestpractices/pdfs/e-pact92.pdf
D12: 7.5 | E12: 85.54 | F12: 88.5 | G12: 90.2
D13: 10 | E13: 87.39 | F13: 90.2 | G13: 91.7
D14: 15 | E14: 86.96 | F14: 90.2 | G14: 91.7
D15: 20 | E15: 87.7 | F15: 91 | G15: 92.4
D16: 25 | E16: 88.96 | F16: 91.7 | G16: 93
D17: 30 | E17: 89.48 | F17: 92.4 | G17: 93.6 | I17: Energy Independence and Security Act (EISA) refers to the federal nominal efficiency standards established by the 2007 Energy Independence and Security Act, which became effective December 2010. For 1-200 hp general purpose motors 1200 rpm, 1800 rpm, 3600 rpm, EISA is equivalent to NEMA Premium®.* For 201-500 hp motors EISA established different federal nominal efficiency standards, which are equivalent to NEMA MG1-2007 Table 12-11. For 201-500 hp NEMA Premium nominal efficiency levels meet or exceed NEMA MG1-2007, Table 12-12. | O17: For more information, see: http://www1.eere.energy.gov/buildings/appliance_standards/commercial/electric_motors.html
D18: 40 | E18: 89.43 | F18: 93 | G18: 94.1
D19: 50 | E19: 89.74 | F19: 93 | G19: 94.1
D20: 60 | E20: 90.79 | F20: 93.6 | G20: 94.5
D21: 75 | E21: 91.51 | F21: 93.6 | G21: 94.5
D22: 100 | E22: 92.23 | F22: 94.1 | G22: 95
D23: 125 | E23: 91.97 | F23: 94.1 | G23: 95
D24: 150 | E24: 92.61 | F24: 94.5 | G24: 95.4
D25: 200 | E25: 92.87 | F25: 94.5 | G25: 95.4
I26: Above EISA refers to efficiency levels that exceed the EISA federal standards. For 201-500 hp general purpose motors 1200 rpm, 1800 rpm, 3600 rpm, Above EISA is equivalent to NEMA Premium,* with nominal efficiency levels that meet or exceed NEMA MG1-2007, Table 12-12. | O26: For more information, see: http://www.nema.org/stds/mg1.cfm
D27: Size (hp) | E27: Pre-EPAct | F27: EISA | G27: Above EISA
D29: 250 | E29: 94.11 | F29: 95.4 | G29: 95.4
D30: 300 | E30: 94.36 | F30: 95.4 | G30: 95.4
D31: 350 | E31: 94.53 | F31: 95.4 | G31: 95.4
D32: 400 | E32: 95.4 | F32: x | G32: 95.8
D33: 450 | E33: 95.4 | F33: x | G33: 96.2 | I33: *NEMA Premium is a trademark owned by the National Electrical Manufacturers Association, | P33: www.nema.org
D34: 500 | E34: 95.4 | F34: x | G34: 96.2 | I34: x: efficiency value not established at this speed and enclosure type.

Sheet TEFC 1800 Savings
D1: Estimated Annual Energy Savings from Upgrading Motor Efficiency TEFC · 1800 RPM · Full-load Operation · Nominal Efficiency Estimated Annual Energy Cost = (horsepower x annual operating hours x cost of electricity x 0.746) / (efficiency)
N4: Learn more about saving money through sound motor management. For additional tools and resources, visit: www.motorsmatter.org.
D6: Enter Appropriate Values for: | H6: Annual Operating Hours : | K6: 8000 | M6: hrs per year
H7: Cost of Electricity : | K7: 10 | M7: ¢ per kWh
A9: Motor Size (hp) | C9: Operating Costs | E9: Energy Savings | H9: Operating Costs | J9: Energy Savings | M9: Operating Costs | O9: Energy Savings
C10: Pre-EPAct | D10: EPAct | E10: Δ Pre-EPAct => EPAct | H10: EPAct | I10: EISA | J10: Δ EPAct => EISA | M10: Pre-EPAct | N10: EISA | O10: Δ Pre-EPAct => EISA
A11: 1 | C11: =($A11*0.746*$K$6*$K$7)/('TEFC 1800 Values'!E7) -> 778.2994262 | D11: =($A11*0.746*$K$6*$K$7)/('TEFC 1800 Values'!F7) -> 723.3939394 | E11: =C11-D11 -> 54.90548679 | H11: =($A11*0.746*$K$6*$K$7)/('TEFC 1800 Values'!F7) -> 723.3939394 | I11: =($A11*0.746*$K$6*$K$7)/('TEFC 1800 Values'!G7) -> 698.0116959 | J11: =H11-I11 -> 25.38224349 | M11: =($A11*0.746*$K$6*$K$7)/('TEFC 1800 Values'!E7) -> 778.2994262 | N11: =($A11*0.746*$K$6*$K$7)/('TEFC 1800 Values'!G7) -> 698.0116959 | O11: =M11-N11 -> 80.28773028
A12: 1.5 | C12: =($A12*0.746*$K$6*$K$7)/('TEFC 1800 Values'!E8) -> 1132.018209 | D12: =($A12*0.746*$K$6*$K$7)/('TEFC 1800 Values'!F8) -> 1065.714286 | E12: =C12-D12 -> 66.30392369 | H12: =($A12*0.746*$K$6*$K$7)/('TEFC 1800 Values'!F8) -> 1065.714286 | I12: =($A12*0.746*$K$6*$K$7)/('TEFC 1800 Values'!G8) -> 1034.913295 | J12: 30.80099092 | M12: =($A12*0.746*$K$6*$K$7)/('TEFC 1800 Values'!E8) -> 1132.018209 | N12: =($A12*0.746*$K$6*$K$7)/('TEFC 1800 Values'!G8) -> 1034.913295 | O12: =M12-N12 -> 97.10491461
A13: 2 | C13: =($A13*0.746*$K$6*$K$7)/('TEFC 1800 Values'!E9) -> 1476.679451 | D13: =($A13*0.746*$K$6*$K$7)/('TEFC 1800 Values'!F9) -> 1420.952381 | E13: 55.72706975 | H13: =($A13*0.746*$K$6*$K$7)/('TEFC 1800 Values'!F9) -> 1420.952381 | I13: =($A13*0.746*$K$6*$K$7)/('TEFC 1800 Values'!G9) -> 1379.884393 | J13: 41.06798789 | M13: =($A13*0.746*$K$6*$K$7)/('TEFC 1800 Values'!E9) -> 1476.679451 | N13: =($A13*0.746*$K$6*$K$7)/('TEFC 1800 Values'!G9) -> 1379.884393 | O13: =M13-N13 -> 96.79505764
A14: 3 | C14: =($A14*0.746*$K$6*$K$7)/('TEFC 1800 Values'!E10) -> 2199.5086 | D14: =($A14*0.746*$K$6*$K$7)/('TEFC 1800 Values'!F10) -> 2046.171429 | E14: 153.3371709 | H14: =($A14*0.746*$K$6*$K$7)/('TEFC 1800 Values'!F10) -> 2046.171429 | I14: =($A14*0.746*$K$6*$K$7)/('TEFC 1800 Values'!G10) -> 2000.446927 | J14: 45.7245012 | M14: =($A14*0.746*$K$6*$K$7)/('TEFC 1800 Values'!E10) -> 2199.5086 | N14: =($A14*0.746*$K$6*$K$7)/('TEFC 1800 Values'!G10) -> 2000.446927 | O14: =M14-N14 -> 199.0616721
A15: 5 | C15: =($A15*0.746*$K$6*$K$7)/('TEFC 1800 Values'!E11) -> 3580.513559 | D15: =($A15*0.746*$K$6*$K$7)/('TEFC 1800 Values'!F11) -> 3410.285714 | E15: 170.2278446 | H15: =($A15*0.746*$K$6*$K$7)/('TEFC 1800 Values'!F11) -> 3410.285714 | I15: =($A15*0.746*$K$6*$K$7)/('TEFC 1800 Values'!G11) -> 3334.078212 | J15: 76.207502 | M15: =($A15*0.746*$K$6*$K$7)/('TEFC 1800 Values'!E11) -> 3580.513559 | N15: =($A15*0.746*$K$6*$K$7)/('TEFC 1800 Values'!G11) -> 3334.078212 | O15: 246.4353466
A16: 7.5 | C16: =($A16*0.746*$K$6*$K$7)/('TEFC 1800 Values'!E12) -> 5234.4755 | D16: =($A16*0.746*$K$6*$K$7)/('TEFC 1800 Values'!F12) -> 5001.117318 | E16: 233.3581815 | H16: =($A16*0.746*$K$6*$K$7)/('TEFC 1800 Values'!F12) -> 5001.117318 | I16: =($A16*0.746*$K$6*$K$7)/('TEFC 1800 Values'!G12) -> 4881.134133 | J16: 119.9831854 | M16: =($A16*0.746*$K$6*$K$7)/('TEFC 1800 Values'!E12) -> 5234.4755 | N16: =($A16*0.746*$K$6*$K$7)/('TEFC 1800 Values'!G12) -> 4881.134133 | O16: 353.3413669
A17: 10 | C17: =($A17*0.746*$K$6*$K$7)/('TEFC 1800 Values'!E13) -> 6961.390412 | D17: =($A17*0.746*$K$6*$K$7)/('TEFC 1800 Values'!F13) -> 6668.156425 | E17: 293.2339872 | H17: =($A17*0.746*$K$6*$K$7)/('TEFC 1800 Values'!F13) -> 6668.156425 | I17: =($A17*0.746*$K$6*$K$7)/('TEFC 1800 Values'!G13) -> 6508.178844 | J17: 159.9775805 | M17: =($A17*0.746*$K$6*$K$7)/('TEFC 1800 Values'!E13) -> 6961.390412 | N17: =($A17*0.746*$K$6*$K$7)/('TEFC 1800 Values'!G13) -> 6508.178844 | O17: 453.2115677
A18: 15 | C18: =($A18*0.746*$K$6*$K$7)/('TEFC 1800 Values'!E14) -> 10333.60268 | D18: =($A18*0.746*$K$6*$K$7)/('TEFC 1800 Values'!F14) -> 9837.362637 | E18: 496.2400407 | H18: =($A18*0.746*$K$6*$K$7)/('TEFC 1800 Values'!F14) -> 9837.362637 | I18: =($A18*0.746*$K$6*$K$7)/('TEFC 1800 Values'!G14) -> 9688.311688 | J18: 149.0509491 | M18: =($A18*0.746*$K$6*$K$7)/('TEFC 1800 Values'!E14) -> 10333.60268 | N18: =($A18*0.746*$K$6*$K$7)/('TEFC 1800 Values'!G14) -> 9688.311688 | O18: 645.2909897
A19: 20 | C19: =($A19*0.746*$K$6*$K$7)/('TEFC 1800 Values'!E15) -> 13483.95843 | D19: =($A19*0.746*$K$6*$K$7)/('TEFC 1800 Values'!F15) -> 13116.48352 | E19: 367.474911 | H19: =($A19*0.746*$K$6*$K$7)/('TEFC 1800 Values'!F15) -> 13116.48352 | I19: =($A19*0.746*$K$6*$K$7)/('TEFC 1800 Values'!G15) -> 12834.4086 | J19: 282.0749143 | M19: =($A19*0.746*$K$6*$K$7)/('TEFC 1800 Values'!E15) -> 13483.95843 | N19: =($A19*0.746*$K$6*$K$7)/('TEFC 1800 Values'!G15) -> 12834.4086 | O19: 649.5498253
A20: 25 | C20: =($A20*0.746*$K$6*$K$7)/('TEFC 1800 Values'!E16) -> 16707.72676 | D20: =($A20*0.746*$K$6*$K$7)/('TEFC 1800 Values'!F16) -> 16147.18615 | E20: 560.5406165 | H20: =($A20*0.746*$K$6*$K$7)/('TEFC 1800 Values'!F16) -> 16147.18615 | I20: =($A20*0.746*$K$6*$K$7)/('TEFC 1800 Values'!G16) -> 15940.17094 | J20: 207.015207 | M20: =($A20*0.746*$K$6*$K$7)/('TEFC 1800 Values'!E16) -> 16707.72676 | N20: =($A20*0.746*$K$6*$K$7)/('TEFC 1800 Values'!G16) -> 15940.17094 | O20: 767.5558235
A21: 30 | C21: =($A21*0.746*$K$6*$K$7)/('TEFC 1800 Values'!E17) -> 19991.06744 | D21: =($A21*0.746*$K$6*$K$7)/('TEFC 1800 Values'!F17) -> 19376.62338 | E21: 614.4440642 | H21: =($A21*0.746*$K$6*$K$7)/('TEFC 1800 Values'!F17) -> 19376.62338 | I21: =($A21*0.746*$K$6*$K$7)/('TEFC 1800 Values'!G17) -> 19128.20513 | J21: 248.4182484 | M21: =($A21*0.746*$K$6*$K$7)/('TEFC 1800 Values'!E17) -> 19991.06744 | N21: =($A21*0.746*$K$6*$K$7)/('TEFC 1800 Values'!G17) -> 19128.20513 | O21: 862.8623126
A22: 40 | C22: =($A22*0.746*$K$6*$K$7)/('TEFC 1800 Values'!E18) -> 26468.56636 | D22: =($A22*0.746*$K$6*$K$7)/('TEFC 1800 Values'!F18) -> 25668.8172 | E22: 799.7491556 | H22: =($A22*0.746*$K$6*$K$7)/('TEFC 1800 Values'!F18) -> 25668.8172 | I22: =($A22*0.746*$K$6*$K$7)/('TEFC 1800 Values'!G18) -> 25368.75664 | J22: 300.0605624 | M22: =($A22*0.746*$K$6*$K$7)/('TEFC 1800 Values'!E18) -> 26468.56636 | N22: =($A22*0.746*$K$6*$K$7)/('TEFC 1800 Values'!G18) -> 25368.75664 | O22: 1099.809718
A23: 50 | C23: =($A23*0.746*$K$6*$K$7)/('TEFC 1800 Values'!E19) -> 32676.30311 | D23: =($A23*0.746*$K$6*$K$7)/('TEFC 1800 Values'!F19) -> 32086.02151 | E23: 590.2816046 | H23: =($A23*0.746*$K$6*$K$7)/('TEFC 1800 Values'!F19) -> 32086.02151 | I23: =($A23*0.746*$K$6*$K$7)/('TEFC 1800 Values'!G19) -> 31576.71958 | J23: 509.3019287 | M23: =($A23*0.746*$K$6*$K$7)/('TEFC 1800 Values'!E19) -> 32676.30311 | N23: =($A23*0.746*$K$6*$K$7)/('TEFC 1800 Values'!G19) -> 31576.71958 | O23: 1099.583533
A24: 60 | C24: =($A24*0.746*$K$6*$K$7)/('TEFC 1800 Values'!E20) -> 39027.79292 | D24: =($A24*0.746*$K$6*$K$7)/('TEFC 1800 Values'!F20) -> 38256.41026 | E24: 771.3826591 | H24: =($A24*0.746*$K$6*$K$7)/('TEFC 1800 Values'!F20) -> 38256.41026 | I24: =($A24*0.746*$K$6*$K$7)/('TEFC 1800 Values'!G20) -> 37692.63158 | J24: 563.7786775 | M24: =($A24*0.746*$K$6*$K$7)/('TEFC 1800 Values'!E20) -> 39027.79292 | N24: =($A24*0.746*$K$6*$K$7)/('TEFC 1800 Values'!G20) -> 37692.63158 | O24: 1335.161337
A25: 75 | C25: =($A25*0.746*$K$6*$K$7)/('TEFC 1800 Values'!E21) -> 48821.98953 | D25: =($A25*0.746*$K$6*$K$7)/('TEFC 1800 Values'!F21) -> 47566.4187 | E25: 1255.570825 | H25: =($A25*0.746*$K$6*$K$7)/('TEFC 1800 Values'!F21) -> 47566.4187 | I25: =($A25*0.746*$K$6*$K$7)/('TEFC 1800 Values'!G21) -> 46918.23899 | J25: 648.1797098 | M25: =($A25*0.746*$K$6*$K$7)/('TEFC 1800 Values'!E21) -> 48821.98953 | N25: =($A25*0.746*$K$6*$K$7)/('TEFC 1800 Values'!G21) -> 46918.23899 | O25: 1903.750535
A26: 100 | C26: =($A26*0.746*$K$6*$K$7)/('TEFC 1800 Values'!E22) -> 64693.76694 | D26: =($A26*0.746*$K$6*$K$7)/('TEFC 1800 Values'!F22) -> 63153.43915 | E26: 1540.327784 | H26: =($A26*0.746*$K$6*$K$7)/('TEFC 1800 Values'!F22) -> 63153.43915 | I26: =($A26*0.746*$K$6*$K$7)/('TEFC 1800 Values'!G22) -> 62557.65199 | J26: 595.7871618 | M26: =($A26*0.746*$K$6*$K$7)/('TEFC 1800 Values'!E22) -> 64693.76694 | N26: =($A26*0.746*$K$6*$K$7)/('TEFC 1800 Values'!G22) -> 62557.65199 | O26: 2136.114946
A27: 125 | C27: =($A27*0.746*$K$6*$K$7)/('TEFC 1800 Values'!E23) -> 80919.83946 | D27: =($A27*0.746*$K$6*$K$7)/('TEFC 1800 Values'!F23) -> 78941.79894 | E27: 1978.04052 | H27: =($A27*0.746*$K$6*$K$7)/('TEFC 1800 Values'!F23) -> 78941.79894 | I27: =($A27*0.746*$K$6*$K$7)/('TEFC 1800 Values'!G23) -> 78197.06499 | J27: 744.7339523 | M27: =($A27*0.746*$K$6*$K$7)/('TEFC 1800 Values'!E23) -> 80919.83946 | N27: =($A27*0.746*$K$6*$K$7)/('TEFC 1800 Values'!G23) -> 78197.06499 | O27: 2722.774472
A28: 150 | C28: =($A28*0.746*$K$6*$K$7)/('TEFC 1800 Values'!E24) -> 96227.02354 | D28: =($A28*0.746*$K$6*$K$7)/('TEFC 1800 Values'!F24) -> 94231.57895 | E28: 1995.444593 | H28: =($A28*0.746*$K$6*$K$7)/('TEFC 1800 Values'!F24) -> 94231.57895 | I28: =($A28*0.746*$K$6*$K$7)/('TEFC 1800 Values'!G24) -> 93444.67641 | J28: 786.9025382 | M28: =($A28*0.746*$K$6*$K$7)/('TEFC 1800 Values'!E24) -> 96227.02354 | N28: =($A28*0.746*$K$6*$K$7)/('TEFC 1800 Values'!G24) -> 93444.67641 | O28: 2782.347132
A29: 200 | C29: =($A29*0.746*$K$6*$K$7)/('TEFC 1800 Values'!E25) -> 127603.1644 | D29: =($A29*0.746*$K$6*$K$7)/('TEFC 1800 Values'!F25) -> 125642.1053 | E29: 1961.059158 | H29: =($A29*0.746*$K$6*$K$7)/('TEFC 1800 Values'!F25) -> 125642.1053 | I29: =($A29*0.746*$K$6*$K$7)/('TEFC 1800 Values'!G25) -> 124074.8441 | J29: 1567.261188 | M29: =($A29*0.746*$K$6*$K$7)/('TEFC 1800 Values'!E25) -> 127603.1644 | N29: =($A29*0.746*$K$6*$K$7)/('TEFC 1800 Values'!G25) -> 124074.8441 | O29: 3528.320347
A31: (hp) | C31: Pre-EPAct | D31: EISA | E31: Δ Pre-EPAct => EISA | H31: EISA | I31: Above EISA | J31: Δ EISA => Above EISA | M31: Pre-EPAct | N31: Above EISA | O31: Δ Pre-EPAct => Above EISA
A32: 250 | C32: =($A32*0.746*$K$6*$K$7)/('TEFC 1800 Values'!E29) -> 158352.7913 | D32: =($A32*0.746*$K$6*$K$7)/('TEFC 1800 Values'!F29) -> 157052.6316 | E32: =C32-D32 -> 1300.15976 | H32: =($A32*0.746*$K$6*$K$7)/('TEFC 1800 Values'!F29) -> 157052.6316 | I32: =($A32*0.746*$K$6*$K$7)/('TEFC 1800 Values'!G29) -> 155093.5551 | J32: =H32-I32 -> 1959.076485 | M32: =($A32*0.746*$K$6*$K$7)/('TEFC 1800 Values'!E29) -> 158352.7913 | N32: =($A32*0.746*$K$6*$K$7)/('TEFC 1800 Values'!G29) -> 155093.5551 | O32: =M32-N32 -> 3259.236246
A33: 300 | C33: =($A33*0.746*$K$6*$K$7)/('TEFC 1800 Values'!E30) -> 189580.6861 | D33: =($A33*0.746*$K$6*$K$7)/('TEFC 1800 Values'!F30) -> 187672.956 | E33: 1907.730175 | H33: =($A33*0.746*$K$6*$K$7)/('TEFC 1800 Values'!F30) -> 187672.956 | I33: =($A33*0.746*$K$6*$K$7)/('TEFC 1800 Values'!G30) -> 186112.2661 | J33: 1560.689863 | M33: =($A33*0.746*$K$6*$K$7)/('TEFC 1800 Values'!E30) -> 189580.6861 | N33: =($A33*0.746*$K$6*$K$7)/('TEFC 1800 Values'!G30) -> 186112.2661 | O33: 3468.420038
A34: 350 | C34: =($A34*0.746*$K$6*$K$7)/('TEFC 1800 Values'!E31) -> 220896.7851 | D34: =($A34*0.746*$K$6*$K$7)/('TEFC 1800 Values'!F31) -> 218951.782 | E34: 1945.003139 | H34: =($A34*0.746*$K$6*$K$7)/('TEFC 1800 Values'!F31) -> 218951.782 | I34: =($A34*0.746*$K$6*$K$7)/('TEFC 1800 Values'!G31) -> 217130.9771 | J34: 1820.80484 | M34: =($A34*0.746*$K$6*$K$7)/('TEFC 1800 Values'!E31) -> 220896.7851 | N34: =($A34*0.746*$K$6*$K$7)/('TEFC 1800 Values'!G31) -> 217130.9771 | O34: 3765.807979
A35: 400 | C35: =($A35*0.746*$K$6*$K$7)/('TEFC 1800 Values'!E32) -> 251734.6831 | D35: =($A35*0.746*$K$6*$K$7)/('TEFC 1800 Values'!F32) -> 250230.608 | E35: 1504.075151 | H35: =($A35*0.746*$K$6*$K$7)/('TEFC 1800 Values'!F32) -> 250230.608 | I35: =($A35*0.746*$K$6*$K$7)/('TEFC 1800 Values'!G32) -> 248149.6881 | J35: 2080.919817 | M35: =($A35*0.746*$K$6*$K$7)/('TEFC 1800 Values'!E32) -> 251734.6831 | N35: =($A35*0.746*$K$6*$K$7)/('TEFC 1800 Values'!G32) -> 248149.6881 | O35: 3584.994967
A36: 450 | C36: =($A36*0.746*$K$6*$K$7)/('TEFC 1800 Values'!E33) -> 283052.2766 | D36: =($A36*0.746*$K$6*$K$7)/('TEFC 1800 Values'!F33) -> 281509.434 | E36: 1542.842598 | H36: =($A36*0.746*$K$6*$K$7)/('TEFC 1800 Values'!F33) -> 281509.434 | I36: =($A36*0.746*$K$6*$K$7)/('TEFC 1800 Values'!G33) -> 279168.3992 | J36: 2341.034794 | M36: =($A36*0.746*$K$6*$K$7)/('TEFC 1800 Values'!E33) -> 283052.2766 | N36: =($A36*0.746*$K$6*$K$7)/('TEFC 1800 Values'!G33) -> 279168.3992 | O36: 3883.877391
A37: 500 | C37: =($A37*0.746*$K$6*$K$7)/('TEFC 1800 Values'!E34) -> 314568.8383 | D37: =($A37*0.746*$K$6*$K$7)/('TEFC 1800 Values'!F34) -> 311482.2547 | E37: 3086.583591 | H37: =($A37*0.746*$K$6*$K$7)/('TEFC 1800 Values'!F34) -> 311482.2547 | I37: =($A37*0.746*$K$6*$K$7)/('TEFC 1800 Values'!G34) -> 310187.1102 | J37: 1295.14451 | M37: =($A37*0.746*$K$6*$K$7)/('TEFC 1800 Values'!E34) -> 314568.8383 | N37: =($A37*0.746*$K$6*$K$7)/('TEFC 1800 Values'!G34) -> 310187.1102 | O37: 4381.728101
A39: Please see the following "Values" sheet for efficiency data and descriptions.

Sheet TEFC 1800 Values
A1: Efficiency Values Used to Estimate Annual Energy Savings TEFC · 1800 RPM · Full-load Operation · Nominal Efficiency Estimated Annual Energy Cost = (horsepower x annual operating hours x cost of electricity x 0.746) / (efficiency)
D5: Size (hp) | E5: Pre-EPAct | F5: EPAct | G5: EISA | I5: Pre-Energy Policy Act (Pre-EPAct) refers to efficiency levels lower than the federal nominal efficiency standards established by EPAct. Pre-EPAct efficiency levels are an estimated average of nominal efficiency for motors manufactured before the EPAct standards. Pre-EPAct efficiency is calculated by the Department of Energy and used in the MotorMaster+ tool (v 4.01.01, September 2010). | O5: For more information, see: http://www1.eere.energy.gov/industry/bestpractices/software_motormaster.html
D7: 1 | E7: 76.68 | F7: 82.5 | G7: 85.5
D8: 1.5 | E8: 79.08 | F8: 84 | G8: 86.5
D9: 2 | E9: 80.83 | F9: 84 | G9: 86.5
D10: 3 | E10: 81.4 | F10: 87.5 | G10: 89.5
D11: 5 | E11: 83.34 | F11: 87.5 | G11: 89.5 | I11: Energy Policy Act (EPAct) refers to the federal nominal efficiency levels established by the 1992 Energy Policy Act, which became effective in 1997. EPAct established federal nominal efficiency standards for 1-200 hp general purpose motors 1200rpm, 1800 rpm, and 3600 rpm. EPAct efficiency is equivalent to NEMA MG1-2007 Table 12-11 for 1-200 hp motors. EPAct did not establish efficiency standards for 201-500 hp motors. | O11: For more information, see: http://www1.eere.energy.gov/industry/bestpractices/pdfs/e-pact92.pdf
D12: 7.5 | E12: 85.51 | F12: 89.5 | G12: 91.7
D13: 10 | E13: 85.73 | F13: 89.5 | G13: 91.7
D14: 15 | E14: 86.63 | F14: 91 | G14: 92.4
D15: 20 | E15: 88.52 | F15: 91 | G15: 93
D16: 25 | E16: 89.3 | F16: 92.4 | G16: 93.6
D17: 30 | E17: 89.56 | F17: 92.4 | G17: 93.6 | I17: Energy Independence and Security Act (EISA) refers to the federal nominal efficiency standards established by the 2007 Energy Independence and Security Act, which became effective December 2010. For 1-200 hp general purpose motors 1200 rpm, 1800 rpm, 3600 rpm, EISA is equivalent to NEMA Premium®.* For 201-500 hp motors EISA established different federal nominal efficiency standards, which are equivalent to NEMA MG1-2007 Table 12-11. For 201-500 hp NEMA Premium nominal efficiency levels meet or exceed NEMA MG1-2007, Table 12-12. | O17: For more information, see: http://www1.eere.energy.gov/buildings/appliance_standards/commercial/electric_motors.html
D18: 40 | E18: 90.19 | F18: 93 | G18: 94.1
D19: 50 | E19: 91.32 | F19: 93 | G19: 94.5
D20: 60 | E20: 91.75 | F20: 93.6 | G20: 95
D21: 75 | E21: 91.68 | F21: 94.1 | G21: 95.4
D22: 100 | E22: 92.25 | F22: 94.5 | G22: 95.4
D23: 125 | E23: 92.19 | F23: 94.5 | G23: 95.4
D24: 150 | E24: 93.03 | F24: 95 | G24: 95.8
D25: 200 | E25: 93.54 | F25: 95 | G25: 96.2
I26: Above EISA refers to efficiency levels that exceed the EISA federal standards. For 201-500 hp general purpose motors 1200 rpm, 1800 rpm, 3600 rpm, Above EISA is equivalent to NEMA Premium,* with nominal efficiency levels that meet or exceed NEMA MG1-2007, Table 12-12. | O26: For more information, see: http://www.nema.org/stds/mg1.cfm
D27: Size (hp) | E27: Pre-EPAct | F27: EISA | G27: Above EISA
D29: 250 | E29: 94.22 | F29: 95 | G29: 96.2
D30: 300 | E30: 94.44 | F30: 95.4 | G30: 96.2
D31: 350 | E31: 94.56 | F31: 95.4 | G31: 96.2
D32: 400 | E32: 94.83 | F32: 95.4 | G32: 96.2
D33: 450 | E33: 94.88 | F33: 95.4 | G33: 96.2 | I33: *NEMA Premium is a trademark owned by the National Electrical Manufacturers Association, | P33: www.nema.org
D34: 500 | E34: 94.86 | F34: 95.8 | G34: 96.2

Sheet ODP 1800 Savings
D1: Estimated Annual Energy Savings from Upgrading Motor Efficiency ODP · 1800 RPM · Full-load Operation · Nominal Efficiency Estimated Annual Energy Cost = (horsepower x annual operating hours x cost of electricity x 0.746) / (efficiency)
N4: Learn more about saving money through sound motor management. For additional tools and resources, visit: www.motorsmatter.org.
D6: Enter Appropriate Values for: | H6: Annual Operating Hours : | K6: 8000 | M6: hrs per year
H7: Cost of Electricity : | K7: 10 | M7: ¢ per kWh
A9: Motor Size (hp) | C9: Operating Costs | E9: Energy Savings | H9: Operating Costs | J9: Energy Savings | M9: Operating Costs | O9: Energy Savings
C10: Pre-EPAct | D10: EPAct | E10: Δ Pre-EPAct => EPAct | H10: EPAct | I10: EISA | J10: Δ EPAct => EISA | M10: Pre-EPAct | N10: EISA | O10: Δ Pre-EPAct => EISA
A11: 1 | C11: =($A11*0.746*$K$6*$K$7)/('ODP 1800 Values'!E7) -> 769.5680206 | D11: =($A11*0.746*$K$6*$K$7)/('ODP 1800 Values'!F7) -> 723.3939394 | E11: =C11-D11 -> 46.17408124 | H11: =($A11*0.746*$K$6*$K$7)/('ODP 1800 Values'!F7) -> 723.3939394 | I11: =($A11*0.746*$K$6*$K$7)/('ODP 1800 Values'!G7) -> 698.0116959 | J11: =H11-I11 -> 25.38224349 | M11: =($A11*0.746*$K$6*$K$7)/('ODP 1800 Values'!E7) -> 769.5680206 | N11: =($A11*0.746*$K$6*$K$7)/('ODP 1800 Values'!G7) -> 698.0116959 | O11: =M11-N11 -> 71.55632473
A12: 1.5 | C12: =($A12*0.746*$K$6*$K$7)/('ODP 1800 Values'!E8) -> 1128.308546 | D12: =($A12*0.746*$K$6*$K$7)/('ODP 1800 Values'!F8) -> 1065.714286 | E12: =C12-D12 -> 62.59425979 | H12: =($A12*0.746*$K$6*$K$7)/('ODP 1800 Values'!F8) -> 1065.714286 | I12: =($A12*0.746*$K$6*$K$7)/('ODP 1800 Values'!G8) -> 1034.913295 | J12: 30.80099092 | M12: =($A12*0.746*$K$6*$K$7)/('ODP 1800 Values'!E8) -> 1128.308546 | N12: =($A12*0.746*$K$6*$K$7)/('ODP 1800 Values'!G8) -> 1034.913295 | O12: =M12-N12 -> 93.3952507
A13: 2 | C13: =($A13*0.746*$K$6*$K$7)/('ODP 1800 Values'!E9) -> 1481.996523 | D13: =($A13*0.746*$K$6*$K$7)/('ODP 1800 Values'!F9) -> 1420.952381 | E13: 61.04414251 | H13: =($A13*0.746*$K$6*$K$7)/('ODP 1800 Values'!F9) -> 1420.952381 | I13: =($A13*0.746*$K$6*$K$7)/('ODP 1800 Values'!G9) -> 1379.884393 | J13: 41.06798789 | M13: =($A13*0.746*$K$6*$K$7)/('ODP 1800 Values'!E9) -> 1481.996523 | N13: =($A13*0.746*$K$6*$K$7)/('ODP 1800 Values'!G9) -> 1379.884393 | O13: =M13-N13 -> 102.1121304
A14: 3 | C14: =($A14*0.746*$K$6*$K$7)/('ODP 1800 Values'!E10) -> 2173.343044 | D14: =($A14*0.746*$K$6*$K$7)/('ODP 1800 Values'!F10) -> 2069.82659 | E14: 103.5164548 | H14: =($A14*0.746*$K$6*$K$7)/('ODP 1800 Values'!F10) -> 2069.82659 | I14: =($A14*0.746*$K$6*$K$7)/('ODP 1800 Values'!G10) -> 2000.446927 | J14: 69.37966222 | M14: =($A14*0.746*$K$6*$K$7)/('ODP 1800 Values'!E10) -> 2173.343044 | N14: =($A14*0.746*$K$6*$K$7)/('ODP 1800 Values'!G10) -> 2000.446927 | O14: =M14-N14 -> 172.8961171
A15: 5 | C15: =($A15*0.746*$K$6*$K$7)/('ODP 1800 Values'!E11) -> 3559.584874 | D15: =($A15*0.746*$K$6*$K$7)/('ODP 1800 Values'!F11) -> 3410.285714 | E15: 149.2991599 | H15: =($A15*0.746*$K$6*$K$7)/('ODP 1800 Values'!F11) -> 3410.285714 | I15: =($A15*0.746*$K$6*$K$7)/('ODP 1800 Values'!G11) -> 3334.078212 | J15: 76.207502 | M15: =($A15*0.746*$K$6*$K$7)/('ODP 1800 Values'!E11) -> 3559.584874 | N15: =($A15*0.746*$K$6*$K$7)/('ODP 1800 Values'!G11) -> 3334.078212 | O15: 225.5066619
A16: 7.5 | C16: =($A16*0.746*$K$6*$K$7)/('ODP 1800 Values'!E12) -> 5255.988727 | D16: =($A16*0.746*$K$6*$K$7)/('ODP 1800 Values'!F12) -> 5057.627119 | E16: 198.3616085 | H16: =($A16*0.746*$K$6*$K$7)/('ODP 1800 Values'!F12) -> 5057.627119 | I16: =($A16*0.746*$K$6*$K$7)/('ODP 1800 Values'!G12) -> 4918.681319 | J16: 138.9458 | M16: =($A16*0.746*$K$6*$K$7)/('ODP 1800 Values'!E12) -> 5255.988727 | N16: =($A16*0.746*$K$6*$K$7)/('ODP 1800 Values'!G12) -> 4918.681319 | O16: 337.3074084
A17: 10 | C17: =($A17*0.746*$K$6*$K$7)/('ODP 1800 Values'!E13) -> 6932.280172 | D17: =($A17*0.746*$K$6*$K$7)/('ODP 1800 Values'!F13) -> 6668.156425 | E17: 264.1237473 | H17: =($A17*0.746*$K$6*$K$7)/('ODP 1800 Values'!F13) -> 6668.156425 | I17: =($A17*0.746*$K$6*$K$7)/('ODP 1800 Values'!G13) -> 6508.178844 | J17: 159.9775805 | M17: =($A17*0.746*$K$6*$K$7)/('ODP 1800 Values'!E13) -> 6932.280172 | N17: =($A17*0.746*$K$6*$K$7)/('ODP 1800 Values'!G13) -> 6508.178844 | O17: 424.1013279
A18: 15 | C18: =($A18*0.746*$K$6*$K$7)/('ODP 1800 Values'!E14) -> 10195.89977 | D18: =($A18*0.746*$K$6*$K$7)/('ODP 1800 Values'!F14) -> 9837.362637 | E18: 358.5371348 | H18: =($A18*0.746*$K$6*$K$7)/('ODP 1800 Values'!F14) -> 9837.362637 | I18: =($A18*0.746*$K$6*$K$7)/('ODP 1800 Values'!G14) -> 9625.806452 | J18: 211.5561857 | M18: =($A18*0.746*$K$6*$K$7)/('ODP 1800 Values'!E14) -> 10195.89977 | N18: =($A18*0.746*$K$6*$K$7)/('ODP 1800 Values'!G14) -> 9625.806452 | O18: 570.0933206
A19: 20 | C19: =($A19*0.746*$K$6*$K$7)/('ODP 1800 Values'!E15) -> 13517.55379 | D19: =($A19*0.746*$K$6*$K$7)/('ODP 1800 Values'!F15) -> 13116.48352 | E19: 401.0702774 | H19: =($A19*0.746*$K$6*$K$7)/('ODP 1800 Values'!F15) -> 13116.48352 | I19: =($A19*0.746*$K$6*$K$7)/('ODP 1800 Values'!G15) -> 12834.4086 | J19: 282.0749143 | M19: =($A19*0.746*$K$6*$K$7)/('ODP 1800 Values'!E15) -> 13517.55379 | N19: =($A19*0.746*$K$6*$K$7)/('ODP 1800 Values'!G15) -> 12834.4086 | O19: 683.1451917
A20: 25 | C20: =($A20*0.746*$K$6*$K$7)/('ODP 1800 Values'!E16) -> 16781.01451 | D20: =($A20*0.746*$K$6*$K$7)/('ODP 1800 Values'!F16) -> 16270.44711 | E20: 510.5673989 | H20: =($A20*0.746*$K$6*$K$7)/('ODP 1800 Values'!F16) -> 16270.44711 | I20: =($A20*0.746*$K$6*$K$7)/('ODP 1800 Values'!G16) -> 15940.17094 | J20: 330.27617 | M20: =($A20*0.746*$K$6*$K$7)/('ODP 1800 Values'!E16) -> 16781.01451 | N20: =($A20*0.746*$K$6*$K$7)/('ODP 1800 Values'!G16) -> 15940.17094 | O20: 840.8435689
A21: 30 | C21: =($A21*0.746*$K$6*$K$7)/('ODP 1800 Values'!E17) -> 20148.54828 | D21: =($A21*0.746*$K$6*$K$7)/('ODP 1800 Values'!F17) -> 19376.62338 | E21: 771.9249016 | H21: =($A21*0.746*$K$6*$K$7)/('ODP 1800 Values'!F17) -> 19376.62338 | I21: =($A21*0.746*$K$6*$K$7)/('ODP 1800 Values'!G17) -> 19026.56748 | J21: 350.0558952 | M21: =($A21*0.746*$K$6*$K$7)/('ODP 1800 Values'!E17) -> 20148.54828 | N21: =($A21*0.746*$K$6*$K$7)/('ODP 1800 Values'!G17) -> 19026.56748 | O21: 1121.980797
A22: 40 | C22: =($A22*0.746*$K$6*$K$7)/('ODP 1800 Values'!E18) -> 26524.44444 | D22: =($A22*0.746*$K$6*$K$7)/('ODP 1800 Values'!F18) -> 25668.8172 | E22: 855.6272401 | H22: =($A22*0.746*$K$6*$K$7)/('ODP 1800 Values'!F18) -> 25668.8172 | I22: =($A22*0.746*$K$6*$K$7)/('ODP 1800 Values'!G18) -> 25368.75664 | J22: 300.0605624 | M22: =($A22*0.746*$K$6*$K$7)/('ODP 1800 Values'!E18) -> 26524.44444 | N22: =($A22*0.746*$K$6*$K$7)/('ODP 1800 Values'!G18) -> 25368.75664 | O22: 1155.687803
A23: 50 | C23: =($A23*0.746*$K$6*$K$7)/('ODP 1800 Values'!E19) -> 32903.29695 | D23: =($A23*0.746*$K$6*$K$7)/('ODP 1800 Values'!F19) -> 32086.02151 | E23: 817.2754403 | H23: =($A23*0.746*$K$6*$K$7)/('ODP 1800 Values'!F19) -> 32086.02151 | I23: =($A23*0.746*$K$6*$K$7)/('ODP 1800 Values'!G19) -> 31576.71958 | J23: 509.3019287 | M23: =($A23*0.746*$K$6*$K$7)/('ODP 1800 Values'!E19) -> 32903.29695 | N23: =($A23*0.746*$K$6*$K$7)/('ODP 1800 Values'!G19) -> 31576.71958 | O23: 1326.577369
A24: 60 | C24: =($A24*0.746*$K$6*$K$7)/('ODP 1800 Values'!E20) -> 39224.44956 | D24: =($A24*0.746*$K$6*$K$7)/('ODP 1800 Values'!F20) -> 38256.41026 | E24: 968.0392999 | H24: =($A24*0.746*$K$6*$K$7)/('ODP 1800 Values'!F20) -> 38256.41026 | I24: =($A24*0.746*$K$6*$K$7)/('ODP 1800 Values'!G20) -> 37692.63158 | J24: 563.7786775 | M24: =($A24*0.746*$K$6*$K$7)/('ODP 1800 Values'!E20) -> 39224.44956 | N24: =($A24*0.746*$K$6*$K$7)/('ODP 1800 Values'!G20) -> 37692.63158 | O24: 1531.817977
A25: 75 | C25: =($A25*0.746*$K$6*$K$7)/('ODP 1800 Values'!E21) -> 48683.9243 | D25: =($A25*0.746*$K$6*$K$7)/('ODP 1800 Values'!F21) -> 47566.4187 | E25: 1117.505595 | H25: =($A25*0.746*$K$6*$K$7)/('ODP 1800 Values'!F21) -> 47566.4187 | I25: =($A25*0.746*$K$6*$K$7)/('ODP 1800 Values'!G21) -> 47115.78947 | J25: 450.6292298 | M25: =($A25*0.746*$K$6*$K$7)/('ODP 1800 Values'!E21) -> 48683.9243 | N25: =($A25*0.746*$K$6*$K$7)/('ODP 1800 Values'!G21) -> 47115.78947 | O25: 1568.134825
A26: 100 | C26: =($A26*0.746*$K$6*$K$7)/('ODP 1800 Values'!E22) -> 64813.20591 | D26: =($A26*0.746*$K$6*$K$7)/('ODP 1800 Values'!F22) -> 63421.8916 | E26: 1391.314303 | H26: =($A26*0.746*$K$6*$K$7)/('ODP 1800 Values'!F22) -> 63421.8916 | I26: =($A26*0.746*$K$6*$K$7)/('ODP 1800 Values'!G22) -> 62557.65199 | J26: 864.2396131 | M26: =($A26*0.746*$K$6*$K$7)/('ODP 1800 Values'!E22) -> 64813.20591 | N26: =($A26*0.746*$K$6*$K$7)/('ODP 1800 Values'!G22) -> 62557.65199 | O26: 2255.553916
A27: 125 | C27: =($A27*0.746*$K$6*$K$7)/('ODP 1800 Values'!E23) -> 80937.39829 | D27: =($A27*0.746*$K$6*$K$7)/('ODP 1800 Values'!F23) -> 78941.79894 | E27: 1995.599344 | H27: =($A27*0.746*$K$6*$K$7)/('ODP 1800 Values'!F23) -> 78941.79894 | I27: =($A27*0.746*$K$6*$K$7)/('ODP 1800 Values'!G23) -> 78197.06499 | J27: 744.7339523 | M27: =($A27*0.746*$K$6*$K$7)/('ODP 1800 Values'!E23) -> 80937.39829 | N27: =($A27*0.746*$K$6*$K$7)/('ODP 1800 Values'!G23) -> 78197.06499 | O27: 2740.333296
A28: 150 | C28: =($A28*0.746*$K$6*$K$7)/('ODP 1800 Values'!E24) -> 96455.12337 | D28: =($A28*0.746*$K$6*$K$7)/('ODP 1800 Values'!F24) -> 94231.57895 | E28: 2223.544423 | H28: =($A28*0.746*$K$6*$K$7)/('ODP 1800 Values'!F24) -> 94231.57895 | I28: =($A28*0.746*$K$6*$K$7)/('ODP 1800 Values'!G24) -> 93444.67641 | J28: 786.9025382 | M28: =($A28*0.746*$K$6*$K$7)/('ODP 1800 Values'!E24) -> 96455.12337 | N28: =($A28*0.746*$K$6*$K$7)/('ODP 1800 Values'!G24) -> 93444.67641 | O28: 3010.446961
A29: 200 | C29: =($A29*0.746*$K$6*$K$7)/('ODP 1800 Values'!E25) -> 128302.6981 | D29: =($A29*0.746*$K$6*$K$7)/('ODP 1800 Values'!F25) -> 125642.1053 | E29: 2660.592791 | H29: =($A29*0.746*$K$6*$K$7)/('ODP 1800 Values'!F25) -> 125642.1053 | I29: =($A29*0.746*$K$6*$K$7)/('ODP 1800 Values'!G25) -> 124592.9019 | J29: 1049.203384 | M29: =($A29*0.746*$K$6*$K$7)/('ODP 1800 Values'!E25) -> 128302.6981 | N29: =($A29*0.746*$K$6*$K$7)/('ODP 1800 Values'!G25) -> 124592.9019 | O29: 3709.796175
A31: (hp) | C31: Pre-EPAct | D31: EISA | E31: Δ Pre-EPAct => EISA | H31: EISA | I31: Above EISA | J31: Δ EISA => Above EISA | M31: Pre-EPAct | N31: Above EISA | O31: Δ Pre-EPAct => Above EISA
A32: 250 | C32: =($A32*0.746*$K$6*$K$7)/('ODP 1800 Values'!E29) -> 157983.9051 | D32: =($A32*0.746*$K$6*$K$7)/('ODP 1800 Values'!F29) -> 156394.13 | E32: =C32-D32 -> 1589.775146 | H32: =($A32*0.746*$K$6*$K$7)/('ODP 1800 Values'!F29) -> 156394.13 | I32: =($A32*0.746*$K$6*$K$7)/('ODP 1800 Values'!G29) -> 155741.1273 | J32: =H32-I32 -> 653.0026304 | M32: =($A32*0.746*$K$6*$K$7)/('ODP 1800 Values'!E29) -> 157983.9051 | N32: =($A32*0.746*$K$6*$K$7)/('ODP 1800 Values'!G29) -> 155741.1273 | O32: =M32-N32 -> 2242.777776
A33: 300 | C33: =($A33*0.746*$K$6*$K$7)/('ODP 1800 Values'!E30) -> 189220.038 | D33: =($A33*0.746*$K$6*$K$7)/('ODP 1800 Values'!F30) -> 187672.956 | E33: 1547.082072 | H33: =($A33*0.746*$K$6*$K$7)/('ODP 1800 Values'!F30) -> 187672.956 | I33: =($A33*0.746*$K$6*$K$7)/('ODP 1800 Values'!G30) -> 186889.3528 | J33: 783.6031565 | M33: =($A33*0.746*$K$6*$K$7)/('ODP 1800 Values'!E30) -> 189220.038 | N33: =($A33*0.746*$K$6*$K$7)/('ODP 1800 Values'!G30) -> 186889.3528 | O33: 2330.685229
A34: 350 | C34: =($A34*0.746*$K$6*$K$7)/('ODP 1800 Values'!E31) -> 222071.0185 | D34: =($A34*0.746*$K$6*$K$7)/('ODP 1800 Values'!F31) -> 218951.782 | E34: 3119.236528 | H34: =($A34*0.746*$K$6*$K$7)/('ODP 1800 Values'!F31) -> 218951.782 | I34: =($A34*0.746*$K$6*$K$7)/('ODP 1800 Values'!G31) -> 218037.5783 | J34: 914.2036825 | M34: =($A34*0.746*$K$6*$K$7)/('ODP 1800 Values'!E31) -> 222071.0185 | N34: =($A34*0.746*$K$6*$K$7)/('ODP 1800 Values'!G31) -> 218037.5783 | O34: 4033.440211
A35: 400 | C35: =($A35*0.746*$K$6*$K$7)/('ODP 1800 Values'!E32) -> 252000.4223 | D35: =($A35*0.746*$K$6*$K$7)/('ODP 1800 Values'!F32) -> 250230.608 | E35: 1769.814286 | H35: =($A35*0.746*$K$6*$K$7)/('ODP 1800 Values'!F32) -> 250230.608 | I35: =($A35*0.746*$K$6*$K$7)/('ODP 1800 Values'!G32) -> 249185.8038 | J35: 1044.804209 | M35: =($A35*0.746*$K$6*$K$7)/('ODP 1800 Values'!E32) -> 252000.4223 | N35: =($A35*0.746*$K$6*$K$7)/('ODP 1800 Values'!G32) -> 249185.8038 | O35: 2814.618495
A36: 450 | C36: =($A36*0.746*$K$6*$K$7)/('ODP 1800 Values'!E33) -> 282813.8163 | D36: =($A36*0.746*$K$6*$K$7)/('ODP 1800 Values'!F33) -> 280334.0292 | E36: 2479.787116 | H36: =($A36*0.746*$K$6*$K$7)/('ODP 1800 Values'!F33) -> 280334.0292 | I36: =($A36*0.746*$K$6*$K$7)/('ODP 1800 Values'!G33) -> 279168.3992 | J36: 1165.630059 | M36: =($A36*0.746*$K$6*$K$7)/('ODP 1800 Values'!E33) -> 282813.8163 | N36: =($A36*0.746*$K$6*$K$7)/('ODP 1800 Values'!G33) -> 279168.3992 | O36: 3645.417175
A37: 500 | C37: =($A37*0.746*$K$6*$K$7)/('ODP 1800 Values'!E34) -> 314204.4856 | D37: =($A37*0.746*$K$6*$K$7)/('ODP 1800 Values'!F34) -> 311482.2547 | E37: 2722.23093 | H37: =($A37*0.746*$K$6*$K$7)/('ODP 1800 Values'!F34) -> 311482.2547 | I37: =($A37*0.746*$K$6*$K$7)/('ODP 1800 Values'!G34) -> 310187.1102 | J37: 1295.14451 | M37: =($A37*0.746*$K$6*$K$7)/('ODP 1800 Values'!E34) -> 314204.4856 | N37: =($A37*0.746*$K$6*$K$7)/('ODP 1800 Values'!G34) -> 310187.1102 | O37: 4017.37544
A39: Please see the following "Values" sheet for efficiency data and descriptions.

Sheet ODP 1800 Values
A1: Efficiency Values Used to Estimate Annual Energy Savings ODP · 1800 RPM · Full-load Operation · Nominal Efficiency Estimated Annual Energy Cost = (horsepower x annual operating hours x cost of electricity x 0.746) / (efficiency)
D5: Size (hp) | E5: Pre-EPAct | F5: EPAct | G5: EISA | I5: Pre-Energy Policy Act (Pre-EPAct) refers to efficiency levels lower than the federal nominal efficiency standards established by EPAct. Pre-EPAct efficiency levels are an estimated average of nominal efficiency for motors manufactured before the EPAct standards. Pre-EPAct efficiency is calculated by the Department of Energy and used in the MotorMaster+ tool (v 4.01.01, September 2010). | O5: For more information, see: http://www1.eere.energy.gov/industry/bestpractices/software_motormaster.html
D7: 1 | E7: 77.55 | F7: 82.5 | G7: 85.5
D8: 1.5 | E8: 79.34 | F8: 84 | G8: 86.5
D9: 2 | E9: 80.54 | F9: 84 | G9: 86.5
D10: 3 | E10: 82.38 | F10: 86.5 | G10: 89.5
D11: 5 | E11: 83.83 | F11: 87.5 | G11: 89.5 | I11: Energy Policy Act (EPAct) refers to the federal nominal efficiency levels established by the 1992 Energy Policy Act, which became effective in 1997. EPAct established federal nominal efficiency standards for 1-200 hp general purpose motors 1200rpm, 1800 rpm, and 3600 rpm. EPAct efficiency is equivalent to NEMA MG1-2007 Table 12-11 for 1-200 hp motors. EPAct did not establish efficiency standards for 201-500 hp motors. | O11: For more information, see: http://www1.eere.energy.gov/industry/bestpractices/pdfs/e-pact92.pdf
D12: 7.5 | E12: 85.16 | F12: 88.5 | G12: 91
D13: 10 | E13: 86.09 | F13: 89.5 | G13: 91.7
D14: 15 | E14: 87.8 | F14: 91 | G14: 93
D15: 20 | E15: 88.3 | F15: 91 | G15: 93
D16: 25 | E16: 88.91 | F16: 91.7 | G16: 93.6
D17: 30 | E17: 88.86 | F17: 92.4 | G17: 94.1 | I17: Energy Independence and Security Act (EISA) refers to the federal nominal efficiency standards established by the 2007 Energy Independence and Security Act, which became effective December 2010. For 1-200 hp general purpose motors 1200 rpm, 1800 rpm, 3600 rpm, EISA is equivalent to NEMA Premium®.* For 201-500 hp motors EISA established different federal nominal efficiency standards, which are equivalent to NEMA MG1-2007 Table 12-11. For 201-500 hp NEMA Premium nominal efficiency levels meet or exceed NEMA MG1-2007, Table 12-12. | O17: For more information, see: http://www1.eere.energy.gov/buildings/appliance_standards/commercial/electric_motors.html
D18: 40 | E18: 90 | F18: 93 | G18: 94.1
D19: 50 | E19: 90.69 | F19: 93 | G19: 94.5
D20: 60 | E20: 91.29 | F20: 93.6 | G20: 95
D21: 75 | E21: 91.94 | F21: 94.1 | G21: 95
D22: 100 | E22: 92.08 | F22: 94.1 | G22: 95.4
D23: 125 | E23: 92.17 | F23: 94.5 | G23: 95.4
D24: 150 | E24: 92.81 | F24: 95 | G24: 95.8
D25: 200 | E25: 93.03 | F25: 95 | G25: 95.8
I26: Above EISA refers to efficiency levels that exceed the EISA federal standards. For 201-500 hp general purpose motors 1200 rpm, 1800 rpm, 3600 rpm, Above EISA is equivalent to NEMA Premium,* with nominal efficiency levels that meet or exceed NEMA MG1-2007, Table 12-12. | O26: For more information, see: http://www.nema.org/stds/mg1.cfm
D27: Size (hp) | E27: Pre-EPAct | F27: EISA | G27: Above EISA
D29: 250 | E29: 94.44 | F29: 95.4 | G29: 95.8
D30: 300 | E30: 94.62 | F30: 95.4 | G30: 95.8
D31: 350 | E31: 94.06 | F31: 95.4 | G31: 95.8
D32: 400 | E32: 94.73 | F32: 95.4 | G32: 95.8
D33: 450 | E33: 94.96 | F33: 95.8 | G33: 96.2 | I33: *NEMA Premium is a trademark owned by the National Electrical Manufacturers Association, | P33: www.nema.org
D34: 500 | E34: 94.97 | F34: 95.8 | G34: 96.2

Sheet TEFC 3600 Savings
D1: Estimated Annual Energy Savings from Upgrading Motor Efficiency TEFC · 3600 RPM · Full-load Operation · Nominal Efficiency Estimated Annual Energy Cost = (horsepower x annual operating hours x cost of electricity x 0.746) / (efficiency)
N4: Learn more about saving money through sound motor management. For additional tools and resources, visit: www.motorsmatter.org.
D6: Enter Appropriate Values for: | H6: Annual Operating Hours : | K6: 8000 | M6: hrs per year
H7: Cost of Electricity : | K7: 10 | M7: ¢ per kWh
A9: Size (hp) | C9: Operating Costs | E9: Energy Savings | H9: Operating Costs | J9: Energy Savings | M9: Operating Costs | O9: Energy Savings
C10: Pre-EPAct | D10: EPAct | E10: Δ Pre-EPAct => EPAct | H10: EPAct | I10: EISA | J10: Δ EPAct => EISA | M10: Pre-EPAct | N10: EISA | O10: Δ Pre-EPAct => EISA
A11: 1 | C11: =($A11*0.746*$K$6*$K$7)/('TEFC 3600 Values'!E7) -> 817.5342466 | D11: =($A11*0.746*$K$6*$K$7)/('TEFC 3600 Values'!F7) -> 790.4635762 | E11: =C11-D11 -> 27.07067042 | H11: =($A11*0.746*$K$6*$K$7)/('TEFC 3600 Values'!F7) -> 790.4635762 | I11: =($A11*0.746*$K$6*$K$7)/('TEFC 3600 Values'!G7) -> 775.0649351 | J11: =H11-I11 -> 15.39864109 | M11: =($A11*0.746*$K$6*$K$7)/('TEFC 3600 Values'!E7) -> 817.5342466 | N11: =($A11*0.746*$K$6*$K$7)/('TEFC 3600 Values'!G7) -> 775.0649351 | O11: =M11-N11 -> 42.46931151
A12: 1.5 | C12: =($A12*0.746*$K$6*$K$7)/('TEFC 3600 Values'!E8) -> 1191.217565 | D12: =($A12*0.746*$K$6*$K$7)/('TEFC 3600 Values'!F8) -> 1085.090909 | E12: =C12-D12 -> 106.1266558 | H12: =($A12*0.746*$K$6*$K$7)/('TEFC 3600 Values'!F8) -> 1085.090909 | I12: =($A12*0.746*$K$6*$K$7)/('TEFC 3600 Values'!G8) -> 1065.714286 | J12: 19.37662338 | M12: =($A12*0.746*$K$6*$K$7)/('TEFC 3600 Values'!E8) -> 1191.217565 | N12: =($A12*0.746*$K$6*$K$7)/('TEFC 3600 Values'!G8) -> 1065.714286 | O12: =M12-N12 -> 125.5032792
A13: 2 | C13: =($A13*0.746*$K$6*$K$7)/('TEFC 3600 Values'!E9) -> 1513.184584 | D13: =($A13*0.746*$K$6*$K$7)/('TEFC 3600 Values'!F9) -> 1420.952381 | E13: 92.23220323 | H13: =($A13*0.746*$K$6*$K$7)/('TEFC 3600 Values'!F9) -> 1420.952381 | I13: =($A13*0.746*$K$6*$K$7)/('TEFC 3600 Values'!G9) -> 1396.023392 | J13: 24.92898914 | M13: =($A13*0.746*$K$6*$K$7)/('TEFC 3600 Values'!E9) -> 1513.184584 | N13: =($A13*0.746*$K$6*$K$7)/('TEFC 3600 Values'!G9) -> 1396.023392 | O13: =M13-N13 -> 117.1611924
A14: 3 | C14: =($A14*0.746*$K$6*$K$7)/('TEFC 3600 Values'!E10) -> 2248.681236 | D14: =($A14*0.746*$K$6*$K$7)/('TEFC 3600 Values'!F10) -> 2094.035088 | E14: 154.6461482 | H14: =($A14*0.746*$K$6*$K$7)/('TEFC 3600 Values'!F10) -> 2094.035088 | I14: =($A14*0.746*$K$6*$K$7)/('TEFC 3600 Values'!G10) -> 2069.82659 | J14: 24.20849812 | M14: =($A14*0.746*$K$6*$K$7)/('TEFC 3600 Values'!E10) -> 2248.681236 | N14: =($A14*0.746*$K$6*$K$7)/('TEFC 3600 Values'!G10) -> 2069.82659 | O14: =M14-N14 -> 178.8546463
A15: 5 | C15: =($A15*0.746*$K$6*$K$7)/('TEFC 3600 Values'!E11) -> 3622.238407 | D15: =($A15*0.746*$K$6*$K$7)/('TEFC 3600 Values'!F11) -> 3410.285714 | E15: 211.9526931 | H15: =($A15*0.746*$K$6*$K$7)/('TEFC 3600 Values'!F11) -> 3410.285714 | I15: =($A15*0.746*$K$6*$K$7)/('TEFC 3600 Values'!G11) -> 3371.751412 | J15: 38.53430186 | M15: =($A15*0.746*$K$6*$K$7)/('TEFC 3600 Values'!E11) -> 3622.238407 | N15: =($A15*0.746*$K$6*$K$7)/('TEFC 3600 Values'!G11) -> 3371.751412 | O15: 250.486995
A16: 7.5 | C16: =($A16*0.746*$K$6*$K$7)/('TEFC 3600 Values'!E12) -> 5419.542317 | D16: =($A16*0.746*$K$6*$K$7)/('TEFC 3600 Values'!F12) -> 5057.627119 | E16: 361.9151988 | H16: =($A16*0.746*$K$6*$K$7)/('TEFC 3600 Values'!F12) -> 5057.627119 | I16: =($A16*0.746*$K$6*$K$7)/('TEFC 3600 Values'!G12) -> 5001.117318 | J16: 56.50980021 | M16: =($A16*0.746*$K$6*$K$7)/('TEFC 3600 Values'!E12) -> 5419.542317 | N16: =($A16*0.746*$K$6*$K$7)/('TEFC 3600 Values'!G12) -> 5001.117318 | O16: 418.424999
A17: 10 | C17: =($A17*0.746*$K$6*$K$7)/('TEFC 3600 Values'!E13) -> 7022.002589 | D17: =($A17*0.746*$K$6*$K$7)/('TEFC 3600 Values'!F13) -> 6668.156425 | E17: 353.846164 | H17: =($A17*0.746*$K$6*$K$7)/('TEFC 3600 Values'!F13) -> 6668.156425 | I17: =($A17*0.746*$K$6*$K$7)/('TEFC 3600 Values'!G13) -> 6616.407982 | J17: 51.74844232 | M17: =($A17*0.746*$K$6*$K$7)/('TEFC 3600 Values'!E13) -> 7022.002589 | N17: =($A17*0.746*$K$6*$K$7)/('TEFC 3600 Values'!G13) -> 6616.407982 | O17: 405.5946063
A18: 15 | C18: =($A18*0.746*$K$6*$K$7)/('TEFC 3600 Values'!E14) -> 10450.61873 | D18: =($A18*0.746*$K$6*$K$7)/('TEFC 3600 Values'!F14) -> 9924.611973 | E18: 526.0067518 | H18: =($A18*0.746*$K$6*$K$7)/('TEFC 3600 Values'!F14) -> 9924.611973 | I18: =($A18*0.746*$K$6*$K$7)/('TEFC 3600 Values'!G14) -> 9837.362637 | J18: 87.24933603 | M18: =($A18*0.746*$K$6*$K$7)/('TEFC 3600 Values'!E14) -> 10450.61873 | N18: =($A18*0.746*$K$6*$K$7)/('TEFC 3600 Values'!G14) -> 9837.362637 | O18: 613.2560878
A19: 20 | C19: =($A19*0.746*$K$6*$K$7)/('TEFC 3600 Values'!E15) -> 13779.72755 | D19: =($A19*0.746*$K$6*$K$7)/('TEFC 3600 Values'!F15) -> 13232.81596 | E19: 546.9115811 | H19: =($A19*0.746*$K$6*$K$7)/('TEFC 3600 Values'!F15) -> 13232.81596 | I19: =($A19*0.746*$K$6*$K$7)/('TEFC 3600 Values'!G15) -> 13116.48352 | J19: 116.332448 | M19: =($A19*0.746*$K$6*$K$7)/('TEFC 3600 Values'!E15) -> 13779.72755 | N19: =($A19*0.746*$K$6*$K$7)/('TEFC 3600 Values'!G15) -> 13116.48352 | O19: 663.2440291
A20: 25 | C20: =($A20*0.746*$K$6*$K$7)/('TEFC 3600 Values'!E16) -> 17045.58437 | D20: =($A20*0.746*$K$6*$K$7)/('TEFC 3600 Values'!F16) -> 16395.6044 | E20: 649.9799755 | H20: =($A20*0.746*$K$6*$K$7)/('TEFC 3600 Values'!F16) -> 16395.6044 | I20: =($A20*0.746*$K$6*$K$7)/('TEFC 3600 Values'!G16) -> 16270.44711 | J20: 125.1572855 | M20: =($A20*0.746*$K$6*$K$7)/('TEFC 3600 Values'!E16) -> 17045.58437 | N20: =($A20*0.746*$K$6*$K$7)/('TEFC 3600 Values'!G16) -> 16270.44711 | O20: 775.1372609
A21: 30 | C21: =($A21*0.746*$K$6*$K$7)/('TEFC 3600 Values'!E17) -> 20405.74424 | D21: =($A21*0.746*$K$6*$K$7)/('TEFC 3600 Values'!F17) -> 19674.72527 | E21: 731.0189696 | H21: =($A21*0.746*$K$6*$K$7)/('TEFC 3600 Values'!F17) -> 19674.72527 | I21: =($A21*0.746*$K$6*$K$7)/('TEFC 3600 Values'!G17) -> 19524.53653 | J21: 150.1887426 | M21: =($A21*0.746*$K$6*$K$7)/('TEFC 3600 Values'!E17) -> 20405.74424 | N21: =($A21*0.746*$K$6*$K$7)/('TEFC 3600 Values'!G17) -> 19524.53653 | O21: 881.2077122
A22: 40 | C22: =($A22*0.746*$K$6*$K$7)/('TEFC 3600 Values'!E18) -> 26961.82516 | D22: =($A22*0.746*$K$6*$K$7)/('TEFC 3600 Values'!F18) -> 26032.71538 | E22: 929.1097875 | H22: =($A22*0.746*$K$6*$K$7)/('TEFC 3600 Values'!F18) -> 26032.71538 | I22: =($A22*0.746*$K$6*$K$7)/('TEFC 3600 Values'!G18) -> 25835.49784 | J22: 197.2175407 | M22: =($A22*0.746*$K$6*$K$7)/('TEFC 3600 Values'!E18) -> 26961.82516 | N22: =($A22*0.746*$K$6*$K$7)/('TEFC 3600 Values'!G18) -> 25835.49784 | O22: 1126.327328
A23: 50 | C23: =($A23*0.746*$K$6*$K$7)/('TEFC 3600 Values'!E19) -> 33528.08989 | D23: =($A23*0.746*$K$6*$K$7)/('TEFC 3600 Values'!F19) -> 32294.37229 | E23: 1233.717593 | H23: =($A23*0.746*$K$6*$K$7)/('TEFC 3600 Values'!F19) -> 32294.37229 | I23: =($A23*0.746*$K$6*$K$7)/('TEFC 3600 Values'!G19) -> 32086.02151 | J23: 208.350789 | M23: =($A23*0.746*$K$6*$K$7)/('TEFC 3600 Values'!E19) -> 33528.08989 | N23: =($A23*0.746*$K$6*$K$7)/('TEFC 3600 Values'!G19) -> 32086.02151 | O23: 1442.068382
A24: 60 | C24: =($A24*0.746*$K$6*$K$7)/('TEFC 3600 Values'!E20) -> 40058.17206 | D24: =($A24*0.746*$K$6*$K$7)/('TEFC 3600 Values'!F20) -> 38503.22581 | E24: 1554.946249 | H24: =($A24*0.746*$K$6*$K$7)/('TEFC 3600 Values'!F20) -> 38503.22581 | I24: =($A24*0.746*$K$6*$K$7)/('TEFC 3600 Values'!G20) -> 38256.41026 | J24: 246.81555 | M24: =($A24*0.746*$K$6*$K$7)/('TEFC 3600 Values'!E20) -> 40058.17206 | N24: =($A24*0.746*$K$6*$K$7)/('TEFC 3600 Values'!G20) -> 38256.41026 | O24: 1801.761799
A25: 75 | C25: =($A25*0.746*$K$6*$K$7)/('TEFC 3600 Values'!E21) -> 49403.97351 | D25: =($A25*0.746*$K$6*$K$7)/('TEFC 3600 Values'!F21) -> 48129.03226 | E25: 1274.941252 | H25: =($A25*0.746*$K$6*$K$7)/('TEFC 3600 Values'!F21) -> 48129.03226 | I25: =($A25*0.746*$K$6*$K$7)/('TEFC 3600 Values'!G21) -> 47820.51282 | J25: 308.5194376 | M25: =($A25*0.746*$K$6*$K$7)/('TEFC 3600 Values'!E21) -> 49403.97351 | N25: =($A25*0.746*$K$6*$K$7)/('TEFC 3600 Values'!G21) -> 47820.51282 | O25: 1583.460689
A26: 100 | C26: =($A26*0.746*$K$6*$K$7)/('TEFC 3600 Values'!E22) -> 65669.01408 | D26: =($A26*0.746*$K$6*$K$7)/('TEFC 3600 Values'!F22) -> 63760.68376 | E26: 1908.330324 | H26: =($A26*0.746*$K$6*$K$7)/('TEFC 3600 Values'!F22) -> 63760.68376 | I26: =($A26*0.746*$K$6*$K$7)/('TEFC 3600 Values'!G22) -> 63421.8916 | J26: 338.792156 | M26: =($A26*0.746*$K$6*$K$7)/('TEFC 3600 Values'!E22) -> 65669.01408 | N26: =($A26*0.746*$K$6*$K$7)/('TEFC 3600 Values'!G22) -> 63421.8916 | O26: 2247.12248
A27: 125 | C27: =($A27*0.746*$K$6*$K$7)/('TEFC 3600 Values'!E23) -> 82086.26761 | D27: =($A27*0.746*$K$6*$K$7)/('TEFC 3600 Values'!F23) -> 78941.79894 | E27: 3144.468664 | H27: =($A27*0.746*$K$6*$K$7)/('TEFC 3600 Values'!F23) -> 78941.79894 | I27: =($A27*0.746*$K$6*$K$7)/('TEFC 3600 Values'!G23) -> 78526.31579 | J27: 415.4831523 | M27: =($A27*0.746*$K$6*$K$7)/('TEFC 3600 Values'!E23) -> 82086.26761 | N27: =($A27*0.746*$K$6*$K$7)/('TEFC 3600 Values'!G23) -> 78526.31579 | O27: 3559.951816
A28: 150 | C28: =($A28*0.746*$K$6*$K$7)/('TEFC 3600 Values'!E24) -> 97814.68531 | D28: =($A28*0.746*$K$6*$K$7)/('TEFC 3600 Values'!F24) -> 94730.15873 | E28: 3084.526585 | H28: =($A28*0.746*$K$6*$K$7)/('TEFC 3600 Values'!F24) -> 94730.15873 | I28: =($A28*0.746*$K$6*$K$7)/('TEFC 3600 Values'!G24) -> 94231.57895 | J28: 498.5797828 | M28: =($A28*0.746*$K$6*$K$7)/('TEFC 3600 Values'!E24) -> 97814.68531 | N28: =($A28*0.746*$K$6*$K$7)/('TEFC 3600 Values'!G24) -> 94231.57895 | O28: 3583.106367
A29: 200 | C29: =($A29*0.746*$K$6*$K$7)/('TEFC 3600 Values'!E25) -> 128759.4391 | D29: =($A29*0.746*$K$6*$K$7)/('TEFC 3600 Values'!F25) -> 125642.1053 | E29: 3117.333788 | H29: =($A29*0.746*$K$6*$K$7)/('TEFC 3600 Values'!F25) -> 125642.1053 | I29: =($A29*0.746*$K$6*$K$7)/('TEFC 3600 Values'!G25) -> 125115.304 | J29: 526.8012799 | M29: =($A29*0.746*$K$6*$K$7)/('TEFC 3600 Values'!E25) -> 128759.4391 | N29: =($A29*0.746*$K$6*$K$7)/('TEFC 3600 Values'!G25) -> 125115.304 | O29: 3644.135067
A31: (hp) | C31: Pre-EPAct | D31: EISA | E31: Δ Pre-EPAct => EISA | H31: EISA | I31: Above EISA | J31: Δ EISA => Above EISA | M31: Pre-EPAct | N31: Above EISA | O31: Δ Pre-EPAct => Above EISA
A32: 250 | C32: =($A32*0.746*$K$6*$K$7)/('TEFC 3600 Values'!E29) -> 157583.439 | D32: =($A32*0.746*$K$6*$K$7)/('TEFC 3600 Values'!F29) -> 156394.13 | E32: =C32-D32 -> 1189.308973 | H32: =($A32*0.746*$K$6*$K$7)/('TEFC 3600 Values'!F29) -> 156394.13 | I32: =($A32*0.746*$K$6*$K$7)/('TEFC 3600 Values'!G29) -> 155741.1273 | J32: =H32-I32 -> 653.0026304 | M32: =($A32*0.746*$K$6*$K$7)/('TEFC 3600 Values'!E29) -> 157583.439 | N32: =($A32*0.746*$K$6*$K$7)/('TEFC 3600 Values'!G29) -> 155741.1273 | O32: =M32-N32 -> 1842.311604
A33: 300 | C33: =($A33*0.746*$K$6*$K$7)/('TEFC 3600 Values'!E30) -> 189040.2281 | D33: =($A33*0.746*$K$6*$K$7)/('TEFC 3600 Values'!F30) -> 187672.956 | E33: 1367.27209 | H33: =($A33*0.746*$K$6*$K$7)/('TEFC 3600 Values'!F30) -> 187672.956 | I33: =($A33*0.746*$K$6*$K$7)/('TEFC 3600 Values'!G30) -> 186889.3528 | J33: 783.6031565 | M33: =($A33*0.746*$K$6*$K$7)/('TEFC 3600 Values'!E30) -> 189040.2281 | N33: =($A33*0.746*$K$6*$K$7)/('TEFC 3600 Values'!G30) -> 186889.3528 | O33: 2150.875246
A34: 350 | C34: =($A34*0.746*$K$6*$K$7)/('TEFC 3600 Values'!E31) -> 220686.7406 | D34: =($A34*0.746*$K$6*$K$7)/('TEFC 3600 Values'!F31) -> 218951.782 | E34: 1734.958653 | H34: =($A34*0.746*$K$6*$K$7)/('TEFC 3600 Values'!F31) -> 218951.782 | I34: =($A34*0.746*$K$6*$K$7)/('TEFC 3600 Values'!G31) -> 218037.5783 | J34: 914.2036825 | M34: =($A34*0.746*$K$6*$K$7)/('TEFC 3600 Values'!E31) -> 220686.7406 | N34: =($A34*0.746*$K$6*$K$7)/('TEFC 3600 Values'!G31) -> 218037.5783 | O34: 2649.162335
A35: 400 | C35: =($A35*0.746*$K$6*$K$7)/('TEFC 3600 Values'!E32) -> 251947.2296 | D35: =($A35*0.746*$K$6*$K$7)/('TEFC 3600 Values'!F32) -> 250230.608 | E35: 1716.621585 | H35: =($A35*0.746*$K$6*$K$7)/('TEFC 3600 Values'!F32) -> 250230.608 | I35: =($A35*0.746*$K$6*$K$7)/('TEFC 3600 Values'!G32) -> 249185.8038 | J35: 1044.804209 | M35: =($A35*0.746*$K$6*$K$7)/('TEFC 3600 Values'!E32) -> 251947.2296 | N35: =($A35*0.746*$K$6*$K$7)/('TEFC 3600 Values'!G32) -> 249185.8038 | O35: 2761.425794
A36: 450 | C36: =($A36*0.746*$K$6*$K$7)/('TEFC 3600 Values'!E33) -> 284190.4762 | D36: =($A36*0.746*$K$6*$K$7)/('TEFC 3600 Values'!F33) -> 281509.434 | E36: 2681.042228 | H36: =($A36*0.746*$K$6*$K$7)/('TEFC 3600 Values'!F33) -> 281509.434 | I36: =($A36*0.746*$K$6*$K$7)/('TEFC 3600 Values'!G33) -> 280334.0292 | J36: 1175.404735 | M36: =($A36*0.746*$K$6*$K$7)/('TEFC 3600 Values'!E33) -> 284190.4762 | N36: =($A36*0.746*$K$6*$K$7)/('TEFC 3600 Values'!G33) -> 280334.0292 | O36: 3856.446963
A37: 500 | C37: =($A37*0.746*$K$6*$K$7)/('TEFC 3600 Values'!E34) -> 315767.1958 | D37: =($A37*0.746*$K$6*$K$7)/('TEFC 3600 Values'!F34) -> 312788.26 | E37: 2978.935809 | H37: =($A37*0.746*$K$6*$K$7)/('TEFC 3600 Values'!F34) -> 312788.26 | I37: =($A37*0.746*$K$6*$K$7)/('TEFC 3600 Values'!G34) -> 311482.2547 | J37: 1306.005261 | M37: =($A37*0.746*$K$6*$K$7)/('TEFC 3600 Values'!E34) -> 315767.1958 | N37: =($A37*0.746*$K$6*$K$7)/('TEFC 3600 Values'!G34) -> 311482.2547 | O37: 4284.94107
A39: Please see the following "Values" sheet for efficiency data and descriptions.

Sheet TEFC 3600 Values
A1: Efficiency Values Used to Estimate Annual Energy Savings TEFC · 3600 RPM · Full-load Operation · Nominal Efficiency Estimated Annual Energy Cost = (horsepower x annual operating hours x cost of electricity x 0.746) / (efficiency)
D5: Size (hp) | E5: Pre-EPAct | F5: EPAct | G5: EISA | I5: Pre-Energy Policy Act (Pre-EPAct) refers to efficiency levels lower than the federal nominal efficiency standards established by EPAct. Pre-EPAct efficiency levels are an estimated average of nominal efficiency for motors manufactured before the EPAct standards. Pre-EPAct efficiency is calculated by the Department of Energy and used in the MotorMaster+ tool (v 4.01.01, September 2010). | O5: For more information, see: http://www1.eere.energy.gov/industry/bestpractices/software_motormaster.html
D7: 1 | E7: 73 | F7: 75.5 | G7: 77
D8: 1.5 | E8: 75.15 | F8: 82.5 | G8: 84
D9: 2 | E9: 78.88 | F9: 84 | G9: 85.5
D10: 3 | E10: 79.62 | F10: 85.5 | G10: 86.5
D11: 5 | E11: 82.38 | F11: 87.5 | G11: 88.5 | I11: Energy Policy Act (EPAct) refers to the federal nominal efficiency levels established by the 1992 Energy Policy Act, which became effective in 1997. EPAct established federal nominal efficiency standards for 1-200 hp general purpose motors 1200rpm, 1800 rpm, and 3600 rpm. EPAct efficiency is equivalent to NEMA MG1-2007 Table 12-11 for 1-200 hp motors. EPAct did not establish efficiency standards for 201-500 hp motors. | O11: For more information, see: http://www1.eere.energy.gov/industry/bestpractices/pdfs/e-pact92.pdf
D12: 7.5 | E12: 82.59 | F12: 88.5 | G12: 89.5
D13: 10 | E13: 84.99 | F13: 89.5 | G13: 90.2
D14: 15 | E14: 85.66 | F14: 90.2 | G14: 91
D15: 20 | E15: 86.62 | F15: 90.2 | G15: 91
D16: 25 | E16: 87.53 | F16: 91 | G16: 91.7
D17: 30 | E17: 87.74 | F17: 91 | G17: 91.7 | I17: Energy Independence and Security Act (EISA) refers to the federal nominal efficiency standards established by the 2007 Energy Independence and Security Act, which became effective December 2010. For 1-200 hp general purpose motors 1200 rpm, 1800 rpm, 3600 rpm, EISA is equivalent to NEMA Premium®.* For 201-500 hp motors EISA established different federal nominal efficiency standards, which are equivalent to NEMA MG1-2007 Table 12-11. For 201-500 hp NEMA Premium nominal efficiency levels meet or exceed NEMA MG1-2007, Table 12-12. | O17: For more information, see: http://www1.eere.energy.gov/buildings/appliance_standards/commercial/electric_motors.html
D18: 40 | E18: 88.54 | F18: 91.7 | G18: 92.4
D19: 50 | E19: 89 | F19: 92.4 | G19: 93
D20: 60 | E20: 89.39 | F20: 93 | G20: 93.6
D21: 75 | E21: 90.6 | F21: 93 | G21: 93.6
D22: 100 | E22: 90.88 | F22: 93.6 | G22: 94.1
D23: 125 | E23: 90.88 | F23: 94.5 | G23: 95
D24: 150 | E24: 91.52 | F24: 94.5 | G24: 95
D25: 200 | E25: 92.7 | F25: 95 | G25: 95.4
I26: Above EISA refers to efficiency levels that exceed the EISA federal standards. For 201-500 hp general purpose motors 1200 rpm, 1800 rpm, 3600 rpm, Above EISA is equivalent to NEMA Premium,* with nominal efficiency levels that meet or exceed NEMA MG1-2007, Table 12-12. | O26: For more information, see: http://www.nema.org/stds/mg1.cfm
D27: Size (hp) | E27: Pre-EPAct | F27: EISA | G27: Above EISA
D29: 250 | E29: 94.68 | F29: 95.4 | G29: 95.8
D30: 300 | E30: 94.71 | F30: 95.4 | G30: 95.8
D31: 350 | E31: 94.65 | F31: 95.4 | G31: 95.8
D32: 400 | E32: 94.75 | F32: 95.4 | G32: 95.8
D33: 450 | E33: 94.5 | F33: 95.4 | G33: 95.8 | I33: *NEMA Premium is a trademark owned by the National Electrical Manufacturers Association, | P33: www.nema.org
D34: 500 | E34: 94.5 | F34: 95.4 | G34: 95.8

Sheet ODP 3600 Savings
D1: Estimated Annual Energy Savings from Upgrading Motor Efficiency TEFC · 3600 RPM · Full-load Operation · Nominal Efficiency Estimated Annual Energy Cost = (horsepower x annual operating hours x cost of electricity x 0.746) / (efficiency)
N4: Learn more about saving money through sound motor management. For additional tools and resources, visit: www.motorsmatter.org.
D6: Enter Appropriate Values for: | H6: Annual Operating Hours : | K6: 8000 | M6: hrs per year
H7: Cost of Electricity : | K7: 10 | M7: ¢ per kWh
A9: Size (hp) | C9: Operating Costs | E9: Energy Savings | H9: Operating Costs | J9: Energy Savings | M9: Operating Costs | O9: Energy Savings
C10: Pre-EPAct | D10: EPAct | E10: Δ Pre-EPAct => EPAct | H10: EPAct | I10: EISA | J10: Δ EPAct => EISA | M10: Pre-EPAct | N10: EISA | O10: Δ Pre-EPAct => EISA
A11: 1 | C11: =($A11*0.746*$K$6*$K$7)/('ODP 3600 Values'!E7) -> 783.3048957 | D11: x | E11: x | H11: x | I11: =($A11*0.746*$K$6*$K$7)/('ODP 3600 Values'!G7) -> 775.0649351 | J11: x | M11: =($A11*0.746*$K$6*$K$7)/('ODP 3600 Values'!E7) -> 783.3048957 | N11: =($A11*0.746*$K$6*$K$7)/('ODP 3600 Values'!G7) -> 775.0649351 | O11: =M11-N11 -> 8.239960591
A12: 1.5 | C12: =($A12*0.746*$K$6*$K$7)/('ODP 3600 Values'!E8) -> 1158.834951 | D12: =($A12*0.746*$K$6*$K$7)/('ODP 3600 Values'!F8) -> 1085.090909 | E12: =C12-D12 -> 73.74404237 | H12: =($A12*0.746*$K$6*$K$7)/('ODP 3600 Values'!F8) -> 1085.090909 | I12: =($A12*0.746*$K$6*$K$7)/('ODP 3600 Values'!G8) -> 1065.714286 | J12: =H12-I12 -> 19.37662338 | M12: =($A12*0.746*$K$6*$K$7)/('ODP 3600 Values'!E8) -> 1158.834951 | N12: =($A12*0.746*$K$6*$K$7)/('ODP 3600 Values'!G8) -> 1065.714286 | O12: =M12-N12 -> 93.12066574
A13: 2 | C13: =($A13*0.746*$K$6*$K$7)/('ODP 3600 Values'!E9) -> 1500.251383 | D13: =($A13*0.746*$K$6*$K$7)/('ODP 3600 Values'!F9) -> 1420.952381 | E13: 79.29900165 | H13: =($A13*0.746*$K$6*$K$7)/('ODP 3600 Values'!F9) -> 1420.952381 | I13: =($A13*0.746*$K$6*$K$7)/('ODP 3600 Values'!G9) -> 1396.023392 | J13: 24.92898914 | M13: =($A13*0.746*$K$6*$K$7)/('ODP 3600 Values'!E9) -> 1500.251383 | N13: =($A13*0.746*$K$6*$K$7)/('ODP 3600 Values'!G9) -> 1396.023392 | O13: =M13-N13 -> 104.2279908
A14: 3 | C14: =($A14*0.746*$K$6*$K$7)/('ODP 3600 Values'!E10) -> 2264.036419 | D14: =($A14*0.746*$K$6*$K$7)/('ODP 3600 Values'!F10) -> 2131.428571 | E14: 132.6078474 | H14: =($A14*0.746*$K$6*$K$7)/('ODP 3600 Values'!F10) -> 2131.428571 | I14: =($A14*0.746*$K$6*$K$7)/('ODP 3600 Values'!G10) -> 2094.035088 | J14: 37.39348371 | M14: =($A14*0.746*$K$6*$K$7)/('ODP 3600 Values'!E10) -> 2264.036419 | N14: =($A14*0.746*$K$6*$K$7)/('ODP 3600 Values'!G10) -> 2094.035088 | O14: =M14-N14 -> 170.0013311
A15: 5 | C15: =($A15*0.746*$K$6*$K$7)/('ODP 3600 Values'!E11) -> 3613.903355 | D15: =($A15*0.746*$K$6*$K$7)/('ODP 3600 Values'!F11) -> 3490.05848 | E15: 123.8448752 | H15: =($A15*0.746*$K$6*$K$7)/('ODP 3600 Values'!F11) -> 3490.05848 | I15: =($A15*0.746*$K$6*$K$7)/('ODP 3600 Values'!G11) -> 3449.710983 | J15: 40.34749687 | M15: =($A15*0.746*$K$6*$K$7)/('ODP 3600 Values'!E11) -> 3613.903355 | N15: =($A15*0.746*$K$6*$K$7)/('ODP 3600 Values'!G11) -> 3449.710983 | O15: 164.1923721
A16: 7.5 | C16: =($A16*0.746*$K$6*$K$7)/('ODP 3600 Values'!E12) -> 5401.230843 | D16: =($A16*0.746*$K$6*$K$7)/('ODP 3600 Values'!F12) -> 5115.428571 | E16: 285.8022721 | H16: =($A16*0.746*$K$6*$K$7)/('ODP 3600 Values'!F12) -> 5115.428571 | I16: =($A16*0.746*$K$6*$K$7)/('ODP 3600 Values'!G12) -> 5057.627119 | J16: 57.80145278 | M16: =($A16*0.746*$K$6*$K$7)/('ODP 3600 Values'!E12) -> 5401.230843 | N16: =($A16*0.746*$K$6*$K$7)/('ODP 3600 Values'!G12) -> 5057.627119 | O16: 343.6037248
A17: 10 | C17: =($A17*0.746*$K$6*$K$7)/('ODP 3600 Values'!E13) -> 7019.524818 | D17: =($A17*0.746*$K$6*$K$7)/('ODP 3600 Values'!F13) -> 6743.502825 | E17: 276.0219928 | H17: =($A17*0.746*$K$6*$K$7)/('ODP 3600 Values'!F13) -> 6743.502825 | I17: =($A17*0.746*$K$6*$K$7)/('ODP 3600 Values'!G13) -> 6668.156425 | J17: 75.34640028 | M17: =($A17*0.746*$K$6*$K$7)/('ODP 3600 Values'!E13) -> 7019.524818 | N17: =($A17*0.746*$K$6*$K$7)/('ODP 3600 Values'!G13) -> 6668.156425 | O17: 351.3683931
A18: 15 | C18: =($A18*0.746*$K$6*$K$7)/('ODP 3600 Values'!E14) -> 10333.60268 | D18: =($A18*0.746*$K$6*$K$7)/('ODP 3600 Values'!F14) -> 10002.23464 | E18: 331.3680412 | H18: =($A18*0.746*$K$6*$K$7)/('ODP 3600 Values'!F14) -> 10002.23464 | I18: =($A18*0.746*$K$6*$K$7)/('ODP 3600 Values'!G14) -> 9924.611973 | J18: 77.62266348 | M18: =($A18*0.746*$K$6*$K$7)/('ODP 3600 Values'!E14) -> 10333.60268 | N18: =($A18*0.746*$K$6*$K$7)/('ODP 3600 Values'!G14) -> 9924.611973 | O18: 408.9907047
A19: 20 | C19: =($A19*0.746*$K$6*$K$7)/('ODP 3600 Values'!E15) -> 13543.62873 | D19: =($A19*0.746*$K$6*$K$7)/('ODP 3600 Values'!F15) -> 13232.81596 | E19: 310.8127658 | H19: =($A19*0.746*$K$6*$K$7)/('ODP 3600 Values'!F15) -> 13232.81596 | I19: =($A19*0.746*$K$6*$K$7)/('ODP 3600 Values'!G15) -> 13116.48352 | J19: 116.332448 | M19: =($A19*0.746*$K$6*$K$7)/('ODP 3600 Values'!E15) -> 13543.62873 | N19: =($A19*0.746*$K$6*$K$7)/('ODP 3600 Values'!G15) -> 13116.48352 | O19: 427.1452138
A20: 25 | C20: =($A20*0.746*$K$6*$K$7)/('ODP 3600 Values'!E16) -> 16868.28717 | D20: =($A20*0.746*$K$6*$K$7)/('ODP 3600 Values'!F16) -> 16395.6044 | E20: 472.6827723 | H20: =($A20*0.746*$K$6*$K$7)/('ODP 3600 Values'!F16) -> 16395.6044 | I20: =($A20*0.746*$K$6*$K$7)/('ODP 3600 Values'!G16) -> 16270.44711 | J20: 125.1572855 | M20: =($A20*0.746*$K$6*$K$7)/('ODP 3600 Values'!E16) -> 16868.28717 | N20: =($A20*0.746*$K$6*$K$7)/('ODP 3600 Values'!G16) -> 16270.44711 | O20: 597.8400577
A21: 30 | C21: =($A21*0.746*$K$6*$K$7)/('ODP 3600 Values'!E17) -> 20408.07022 | D21: =($A21*0.746*$K$6*$K$7)/('ODP 3600 Values'!F17) -> 19674.72527 | E21: 733.3449407 | H21: =($A21*0.746*$K$6*$K$7)/('ODP 3600 Values'!F17) -> 19674.72527 | I21: =($A21*0.746*$K$6*$K$7)/('ODP 3600 Values'!G17) -> 19524.53653 | J21: 150.1887426 | M21: =($A21*0.746*$K$6*$K$7)/('ODP 3600 Values'!E17) -> 20408.07022 | N21: =($A21*0.746*$K$6*$K$7)/('ODP 3600 Values'!G17) -> 19524.53653 | O21: 883.5336833
A22: 40 | C22: =($A22*0.746*$K$6*$K$7)/('ODP 3600 Values'!E18) -> 26952.69279 | D22: =($A22*0.746*$K$6*$K$7)/('ODP 3600 Values'!F18) -> 26032.71538 | E22: 919.9774091 | H22: =($A22*0.746*$K$6*$K$7)/('ODP 3600 Values'!F18) -> 26032.71538 | I22: =($A22*0.746*$K$6*$K$7)/('ODP 3600 Values'!G18) -> 25835.49784 | J22: 197.2175407 | M22: =($A22*0.746*$K$6*$K$7)/('ODP 3600 Values'!E18) -> 26952.69279 | N22: =($A22*0.746*$K$6*$K$7)/('ODP 3600 Values'!G18) -> 25835.49784 | O22: 1117.19495
A23: 50 | C23: =($A23*0.746*$K$6*$K$7)/('ODP 3600 Values'!E19) -> 33505.50191 | D23: =($A23*0.746*$K$6*$K$7)/('ODP 3600 Values'!F19) -> 32294.37229 | E23: 1211.129614 | H23: =($A23*0.746*$K$6*$K$7)/('ODP 3600 Values'!F19) -> 32294.37229 | I23: =($A23*0.746*$K$6*$K$7)/('ODP 3600 Values'!G19) -> 32086.02151 | J23: 208.350789 | M23: =($A23*0.746*$K$6*$K$7)/('ODP 3600 Values'!E19) -> 33505.50191 | N23: =($A23*0.746*$K$6*$K$7)/('ODP 3600 Values'!G19) -> 32086.02151 | O23: 1419.480403
A24: 60 | C24: =($A24*0.746*$K$6*$K$7)/('ODP 3600 Values'!E20) -> 39619.38482 | D24: =($A24*0.746*$K$6*$K$7)/('ODP 3600 Values'!F20) -> 38503.22581 | E24: 1116.159013 | H24: =($A24*0.746*$K$6*$K$7)/('ODP 3600 Values'!F20) -> 38503.22581 | I24: =($A24*0.746*$K$6*$K$7)/('ODP 3600 Values'!G20) -> 38256.41026 | J24: 246.81555 | M24: =($A24*0.746*$K$6*$K$7)/('ODP 3600 Values'!E20) -> 39619.38482 | N24: =($A24*0.746*$K$6*$K$7)/('ODP 3600 Values'!G20) -> 38256.41026 | O24: 1362.974563
A25: 75 | C25: =($A25*0.746*$K$6*$K$7)/('ODP 3600 Values'!E21) -> 49535.19256 | D25: =($A25*0.746*$K$6*$K$7)/('ODP 3600 Values'!F21) -> 48129.03226 | E25: 1406.160305 | H25: =($A25*0.746*$K$6*$K$7)/('ODP 3600 Values'!F21) -> 48129.03226 | I25: =($A25*0.746*$K$6*$K$7)/('ODP 3600 Values'!G21) -> 47820.51282 | J25: 308.5194376 | M25: =($A25*0.746*$K$6*$K$7)/('ODP 3600 Values'!E21) -> 49535.19256 | N25: =($A25*0.746*$K$6*$K$7)/('ODP 3600 Values'!G21) -> 47820.51282 | O25: 1714.679743
A26: 100 | C26: =($A26*0.746*$K$6*$K$7)/('ODP 3600 Values'!E22) -> 65922.89849 | D26: =($A26*0.746*$K$6*$K$7)/('ODP 3600 Values'!F22) -> 64172.04301 | E26: 1750.855476 | H26: =($A26*0.746*$K$6*$K$7)/('ODP 3600 Values'!F22) -> 64172.04301 | I26: =($A26*0.746*$K$6*$K$7)/('ODP 3600 Values'!G22) -> 63760.68376 | J26: 411.3592501 | M26: =($A26*0.746*$K$6*$K$7)/('ODP 3600 Values'!E22) -> 65922.89849 | N26: =($A26*0.746*$K$6*$K$7)/('ODP 3600 Values'!G22) -> 63760.68376 | O26: 2162.214726
A27: 125 | C27: =($A27*0.746*$K$6*$K$7)/('ODP 3600 Values'!E23) -> 81780.31134 | D27: =($A27*0.746*$K$6*$K$7)/('ODP 3600 Values'!F23) -> 79700.8547 | E27: 2079.456634 | H27: =($A27*0.746*$K$6*$K$7)/('ODP 3600 Values'!F23) -> 79700.8547 | I27: =($A27*0.746*$K$6*$K$7)/('ODP 3600 Values'!G23) -> 79277.36451 | J27: 423.490195 | M27: =($A27*0.746*$K$6*$K$7)/('ODP 3600 Values'!E23) -> 81780.31134 | N27: =($A27*0.746*$K$6*$K$7)/('ODP 3600 Values'!G23) -> 79277.36451 | O27: 2502.946829
A28: 150 | C28: =($A28*0.746*$K$6*$K$7)/('ODP 3600 Values'!E24) -> 97643.97906 | D28: =($A28*0.746*$K$6*$K$7)/('ODP 3600 Values'!F24) -> 95641.02564 | E28: 2002.953417 | H28: =($A28*0.746*$K$6*$K$7)/('ODP 3600 Values'!F24) -> 95641.02564 | I28: =($A28*0.746*$K$6*$K$7)/('ODP 3600 Values'!G24) -> 95132.83741 | J28: 508.188234 | M28: =($A28*0.746*$K$6*$K$7)/('ODP 3600 Values'!E24) -> 97643.97906 | N28: =($A28*0.746*$K$6*$K$7)/('ODP 3600 Values'!G24) -> 95132.83741 | O28: 2511.141651
A29: 200 | C29: =($A29*0.746*$K$6*$K$7)/('ODP 3600 Values'!E25) -> 130391.0859 | D29: =($A29*0.746*$K$6*$K$7)/('ODP 3600 Values'!F25) -> 126306.8783 | E29: 4084.207557 | H29: =($A29*0.746*$K$6*$K$7)/('ODP 3600 Values'!F25) -> 126306.8783 | I29: =($A29*0.746*$K$6*$K$7)/('ODP 3600 Values'!G25) -> 125642.1053 | J29: 664.7730437 | M29: =($A29*0.746*$K$6*$K$7)/('ODP 3600 Values'!E25) -> 130391.0859 | N29: =($A29*0.746*$K$6*$K$7)/('ODP 3600 Values'!G25) -> 125642.1053 | O29: 4748.980601
A31: (hp) | C31: Pre-EPAct | D31: EISA | E31: Δ Pre-EPAct => EISA | H31: EISA | I31: Above EISA | J31: Δ EISA => Above EISA | M31: Pre-EPAct | N31: Above EISA | O31: Δ Pre-EPAct => Above EISA
A32: 250 | C32: =($A32*0.746*$K$6*$K$7)/('ODP 3600 Values'!E29) -> 160447.3599 | D32: =($A32*0.746*$K$6*$K$7)/('ODP 3600 Values'!F29) -> 157883.5979 | E32: =C32-D32 -> 2563.762048 | H32: =($A32*0.746*$K$6*$K$7)/('ODP 3600 Values'!F29) -> 157883.5979 | I32: =($A32*0.746*$K$6*$K$7)/('ODP 3600 Values'!G29) -> 157052.6316 | J32: =H32-I32 -> 830.9663047 | M32: =($A32*0.746*$K$6*$K$7)/('ODP 3600 Values'!E29) -> 160447.3599 | N32: =($A32*0.746*$K$6*$K$7)/('ODP 3600 Values'!G29) -> 157052.6316 | O32: =M32-N32 -> 3394.728352
A33: 300 | C33: =($A33*0.746*$K$6*$K$7)/('ODP 3600 Values'!E30) -> 190691.2344 | D33: =($A33*0.746*$K$6*$K$7)/('ODP 3600 Values'!F30) -> 188463.1579 | E33: 2228.076529 | H33: =($A33*0.746*$K$6*$K$7)/('ODP 3600 Values'!F30) -> 188463.1579 | I33: =($A33*0.746*$K$6*$K$7)/('ODP 3600 Values'!G30) -> 187672.956 | J33: 790.2019199 | M33: =($A33*0.746*$K$6*$K$7)/('ODP 3600 Values'!E30) -> 190691.2344 | N33: =($A33*0.746*$K$6*$K$7)/('ODP 3600 Values'!G30) -> 187672.956 | O33: 3018.278448
A34: 350 | C34: =($A34*0.746*$K$6*$K$7)/('ODP 3600 Values'!E31) -> 221646.8591 | D34: =($A34*0.746*$K$6*$K$7)/('ODP 3600 Values'!F31) -> 219873.6842 | E34: 1773.174873 | H34: =($A34*0.746*$K$6*$K$7)/('ODP 3600 Values'!F31) -> 219873.6842 | I34: =($A34*0.746*$K$6*$K$7)/('ODP 3600 Values'!G31) -> 218951.782 | J34: 921.9022399 | M34: =($A34*0.746*$K$6*$K$7)/('ODP 3600 Values'!E31) -> 221646.8591 | N34: =($A34*0.746*$K$6*$K$7)/('ODP 3600 Values'!G31) -> 218951.782 | O34: 2695.077113
A35: 400 | C35: =($A35*0.746*$K$6*$K$7)/('ODP 3600 Values'!E32) -> 253015.3683 | D35: =($A35*0.746*$K$6*$K$7)/('ODP 3600 Values'!F32) -> 250230.608 | E35: 2784.760343 | H35: =($A35*0.746*$K$6*$K$7)/('ODP 3600 Values'!F32) -> 250230.608 | I35: =($A35*0.746*$K$6*$K$7)/('ODP 3600 Values'!G32) -> 249185.8038 | J35: 1044.804209 | M35: =($A35*0.746*$K$6*$K$7)/('ODP 3600 Values'!E32) -> 253015.3683 | N35: =($A35*0.746*$K$6*$K$7)/('ODP 3600 Values'!G32) -> 249185.8038 | O35: 3829.564552
A36: 450 | C36: =($A36*0.746*$K$6*$K$7)/('ODP 3600 Values'!E33) -> 283830.0571 | D36: =($A36*0.746*$K$6*$K$7)/('ODP 3600 Values'!F33) -> 280334.0292 | E36: 3496.027843 | H36: =($A36*0.746*$K$6*$K$7)/('ODP 3600 Values'!F33) -> 280334.0292 | I36: =($A36*0.746*$K$6*$K$7)/('ODP 3600 Values'!G33) -> 280334.0292 | J36: 0 | M36: =($A36*0.746*$K$6*$K$7)/('ODP 3600 Values'!E33) -> 283830.0571 | N36: =($A36*0.746*$K$6*$K$7)/('ODP 3600 Values'!G33) -> 280334.0292 | O36: 3496.027843
A37: 500 | C37: =($A37*0.746*$K$6*$K$7)/('ODP 3600 Values'!E34) -> 315433.4038 | D37: =($A37*0.746*$K$6*$K$7)/('ODP 3600 Values'!F34) -> 311482.2547 | E37: 3951.149108 | H37: =($A37*0.746*$K$6*$K$7)/('ODP 3600 Values'!F34) -> 311482.2547 | I37: =($A37*0.746*$K$6*$K$7)/('ODP 3600 Values'!G34) -> 311482.2547 | J37: 0 | M37: =($A37*0.746*$K$6*$K$7)/('ODP 3600 Values'!E34) -> 315433.4038 | N37: =($A37*0.746*$K$6*$K$7)/('ODP 3600 Values'!G34) -> 311482.2547 | O37: 3951.149108
A39: Please see the following "Values" sheet for efficiency data and descriptions.
A40: x: efficiency value not established at this speed and enclosure type.

Sheet ODP 3600 Values
A1: Efficiency Values Used to Estimate Annual Energy Savings ODP · 3600 RPM · Full-load Operation · Nominal Efficiency Estimated Annual Energy Cost = (horsepower x annual operating hours x cost of electricity x 0.746) / (efficiency)
D5: Size (hp) | E5: Pre-EPAct | F5: EPAct | G5: EISA | I5: Pre-Energy Policy Act (Pre-EPAct) refers to efficiency levels lower than the federal nominal efficiency standards established by EPAct. Pre-EPAct efficiency levels are an estimated average of nominal efficiency for motors manufactured before the EPAct standards. Pre-EPAct efficiency is calculated by the Department of Energy and used in the MotorMaster+ tool (v 4.01.01, September 2010). | O5: For more information, see: http://www1.eere.energy.gov/industry/bestpractices/software_motormaster.html
D7: 1 | E7: 76.19 | F7: x | G7: 77
D8: 1.5 | E8: 77.25 | F8: 82.5 | G8: 84
D9: 2 | E9: 79.56 | F9: 84 | G9: 85.5
D10: 3 | E10: 79.08 | F10: 84 | G10: 85.5
D11: 5 | E11: 82.57 | F11: 85.5 | G11: 86.5 | I11: Energy Policy Act (EPAct) refers to the federal nominal efficiency levels established by the 1992 Energy Policy Act, which became effective in 1997. EPAct established federal nominal efficiency standards for 1-200 hp general purpose motors 1200rpm, 1800 rpm, and 3600 rpm. EPAct efficiency is equivalent to NEMA MG1-2007 Table 12-11 for 1-200 hp motors. EPAct did not establish efficiency standards for 201-500 hp motors. | O11: For more information, see: http://www1.eere.energy.gov/industry/bestpractices/pdfs/e-pact92.pdf
D12: 7.5 | E12: 82.87 | F12: 87.5 | G12: 88.5
D13: 10 | E13: 85.02 | F13: 88.5 | G13: 89.5
D14: 15 | E14: 86.63 | F14: 89.5 | G14: 90.2
D15: 20 | E15: 88.13 | F15: 90.2 | G15: 91
D16: 25 | E16: 88.45 | F16: 91 | G16: 91.7
D17: 30 | E17: 87.73 | F17: 91 | G17: 91.7 | I17: Energy Independence and Security Act (EISA) refers to the federal nominal efficiency standards established by the 2007 Energy Independence and Security Act, which became effective December 2010. For 1-200 hp general purpose motors 1200 rpm, 1800 rpm, 3600 rpm, EISA is equivalent to NEMA Premium®.* For 201-500 hp motors EISA established different federal nominal efficiency standards, which are equivalent to NEMA MG1-2007 Table 12-11. For 201-500 hp NEMA Premium nominal efficiency levels meet or exceed NEMA MG1-2007, Table 12-12. | O17: For more information, see: http://www1.eere.energy.gov/buildings/appliance_standards/commercial/electric_motors.html
D18: 40 | E18: 88.57 | F18: 91.7 | G18: 92.4
D19: 50 | E19: 89.06 | F19: 92.4 | G19: 93
D20: 60 | E20: 90.38 | F20: 93 | G20: 93.6
D21: 75 | E21: 90.36 | F21: 93 | G21: 93.6
D22: 100 | E22: 90.53 | F22: 93 | G22: 93.6
D23: 125 | E23: 91.22 | F23: 93.6 | G23: 94.1
D24: 150 | E24: 91.68 | F24: 93.6 | G24: 94.1
D25: 200 | E25: 91.54 | F25: 94.5 | G25: 95
I26: Above EISA refers to efficiency levels that exceed the EISA federal standards. For 201-500 hp general purpose motors 1200 rpm, 1800 rpm, 3600 rpm, Above EISA is equivalent to NEMA Premium,* with nominal efficiency levels that meet or exceed NEMA MG1-2007, Table 12-12. | O26: For more information, see: http://www.nema.org/stds/mg1.cfm
D27: Size (hp) | E27: Pre-EPAct | F27: EISA | G27: Above EISA
D29: 250 | E29: 92.99 | F29: 94.5 | G29: 95
D30: 300 | E30: 93.89 | F30: 95 | G30: 95.4
D31: 350 | E31: 94.24 | F31: 95 | G31: 95.4
D32: 400 | E32: 94.35 | F32: 95.4 | G32: 95.8
D33: 450 | E33: 94.62 | F33: 95.8 | G33: 95.8 | I33: *NEMA Premium is a trademark owned by the National Electrical Manufacturers Association, | P33: www.nema.org
D34: 500 | E34: 94.6 | F34: 95.8 | G34: 95.8 | I34: x: efficiency value not established at this speed and enclosure type.
